{"text_format":"1","workbook":"xlsx","n_sheets":11,"sheets":["Night ONE","Night ONE-option 2","NIGHT TWO","NIGHT THREE","Championship Night","GPI Ranking-Seeding","Team SB Donations","Teams","32 team Bracketology","# of games per night","Team # Match ups"],"not_rendered":{"charts":0,"images":0,"macros":1,"external_links":0,"defined_names":3,"comments":0,"pivot_tables":0},"unopened":[],"bounds":{"document_bytes":16777216,"sheet_cells":100000,"rows_first":2000,"rows_last":500,"rows_between":2000,"halvings":0,"cell_chars":16384,"cell_head_chars":4096},"cells_cut":0,"cells_raw":0,"read":"whole","date_system":"1900"}

{"sheet":"Night ONE","index":0,"n_rows":50,"n_cols":24,"rows_kept":50,"cut":false,"hidden":false,"merged":[[0,6,0,7]]}
["Night 1- ALL at Springdale",null,null,null,"  - Teams Play each team within their own Bracket",null,"Score",null,null,null,null,null,"RESULTS- Night One"]
["# games","time","Courts","Bracket","HOME","AWAY","W","L","Winner","Pt Diff",null,"Division","Teams","Win","Loss",null,"Team #","# of Games",null,"Bracket","NO BREAK","30 MIN","60 MIN","90 MIN"]
[1,"06:00:00","court 1","C1","SARC- I'd Hit That","SO- Team Kona",21,13,"SO- Team Kona",{"$f":"G3-H3","v":8},null,"A","LKP- Will Play for Sets",{"$f":"COUNTIF(I$3:I$50,M3)","v":2},{"$f":"3-N3","v":1},null,1,3,null,"A"]
[2,null,"court 2","C1","SARC- Good Bumps, Nice Sets","SARC- Sets on the Beach",21,12,"SARC- Sets on the Beach",{"$f":"G4-H4","v":9},null,"A","LKP- Pass It Around",{"$f":"COUNTIF(I$3:I$50,M4)","v":2},1,null,2,3,null,"B"]
[3,null,"court 3","C2","LKP- Casual Sets","CT- Volley Llamas",21,14,"LKP- Casual Sets",7,null,"A","CT- Spikological Warfare",0,3,null,3,3,null,"C"]
[4,null,"court 4","C2","HG- Swingrays","GS- 50 Shades of Greystone",21,18,"HG- Swingrays",3,null,"A","NR- Hit That Thang",0,3,null,4,3,null,"D"]
[5,null,"court 5","B2","LKP- Bumpn' Uglies","LKP- Block You Like a Hurricane",21,18,"LKP- Block You Like a Hurricane",3,null,"A","NR- Six Pack Attack",1,2,null,5,3,null,"E"]
[6,null,"court 6","B2","GS- Sand Gators","GS- Vicious & Delicious",21,3,"GS- Sand Gators",18,null,"A","SARC- Volleywood",2,1,null,6,3,null,"F"]
[7,"06:30:00","court 1","A1","NR- Six Pack Attack","SARC- Volleywood",21,7,"SARC- Volleywood",14,null,"A","SO- Kiss My Ace",2,1,null,7,3,null,"G"]
[8,null,"court 2","A1","LKP- Air Vectors","CT- Spikological Warfare",21,11,"LKP- Air Vectors",10,null,"A","LKP- Air Vectors",3,0,null,8,3,null,"H"]
[9,null,"court 3","D1","SARC- Mizfits","SARC- Raleigh Brawl",21,8,"SARC- Raleigh Brawl",13,null,"B","SARC- $et for Life",3,0,null,9,3]
[10,null,"court 4","D1","SARC- Dirt Devils","SARC- Here for Beer",21,13,"SARC- Dirt Devils",8,null,"B","SARC- Sand Diggers",0,3,null,10,3]
[11,null,"court 5","B1","SARC- Sand Diggers","SARC- $et for Life",21,19,"SARC- $et for Life",2,null,"B","LKP- Bumpn' Uglies",1,2,null,11,3]
[12,null,"court 6","B1","SARC- Unprotected Sets","SARC- Notorious D.I.G.",21,10,"SARC- Unprotected Sets",11,null,"B","SARC- Unprotected Sets",2,1,null,12,3]
[13,"07:00:00","court 1","B2","LKP- Bumpn' Uglies","GS- Sand Gators",21,19,"GS- Sand Gators",2,null,"B","SARC- Notorious D.I.G.",1,2,null,13,3]
[14,null,"court 2","B2","LKP- Block You Like a Hurricane","GS- Vicious & Delicious",21,12,"GS- Vicious & Delicious",9,null,"B","GS- Vicious & Delicious",1,2,null,14,3]
[15,null,"court 3","C1","SARC- I'd Hit That","SARC- Good Bumps, Nice Sets",21,19,"SARC- I'd Hit That",2,null,"B","LKP- Block You Like a Hurricane",2,1,null,15,3]
[16,null,"court 4","C1","SO- Team Kona","SARC- Sets on the Beach",21,18,"SARC- Sets on the Beach",3,null,"B","GS- Sand Gators",2,1,null,16,3]
[17,null,"court 5","C2","LKP- Casual Sets","HG- Swingrays",21,10,"LKP- Casual Sets",11,null,"C","SARC- I'd Hit That",2,1,null,17,3]
[18,null,"court 6","C2","CT- Volley Llamas","GS- 50 Shades of Greystone",21,12,"GS- 50 Shades of Greystone",9,null,"C","LKP- Casual Sets",2,1,null,18,3]
[19,"07:30:00","court 1","A2","LKP- Pass It Around","NR- Hit That Thang",21,9,"LKP- Pass It Around",12,null,"C","GS- 50 Shades of Greystone",2,1,null,19,3]
[20,null,"court 2","A2","LKP- Will Play for Sets","SO- Kiss My Ace",21,14,"SO- Kiss My Ace",7,null,"C","SARC- Good Bumps, Nice Sets",0,3,null,20,3]
[21,null,"court 3","B1","SARC- Sand Diggers","SARC- Unprotected Sets",21,18,"SARC- Unprotected Sets",3,null,"C","HG- Swingrays",2,1,null,21,3]
[22,null,"court 4","B1","SARC- $et for Life","SARC- Notorious D.I.G.",21,10,"SARC- $et for Life",11,null,"C","CT- Volley Llamas",0,3,null,22,3]
[23,null,"court 5","D2","SARC- Mojo Risin ","CT- Concrete Feet",21,8,"SARC- Mojo Risin ",13,null,"C","SO- Team Kona",2,1,null,23,3]
[24,null,"court 6","D2","GS- Rhymes with Stupid","GS- El Toro's Revenge",21,9,"GS- El Toro's Revenge",12,null,"C","SARC- Sets on the Beach",2,1,null,24,3]
[25,"08:00:00","court 1","A1","NR- Six Pack Attack","LKP- Air Vectors",18,13,"LKP- Air Vectors",5,null,"D","SARC- Raleigh Brawl",2,1,null,25,3]
[26,null,"court 2","A1","SARC- Volleywood","CT- Spikological Warfare",21,11,"SARC- Volleywood",10,null,"D","CT- Concrete Feet",1,2,null,26,3]
[27,null,"court 3","C2","GS- 50 Shades of Greystone","LKP- Casual Sets",18,15,"GS- 50 Shades of Greystone",3,null,"D","GS- Rhymes with Stupid",1,2,null,27,3]
[28,null,"court 4","C2","CT- Volley Llamas","HG- Swingrays",21,9,"HG- Swingrays",12,null,"D","GS- El Toro's Revenge",3,0,null,28,3]
[29,null,"court 5","D1","SARC- Mizfits","SARC- Dirt Devils",21,14,"SARC- Dirt Devils",7,null,"D","SARC- Mizfits",0,3,null,29,3]
[30,null,"court 6","D1","SARC- Raleigh Brawl","SARC- Here for Beer",21,19,"SARC- Here for Beer",2,null,"D","SARC- Here for Beer",2,1,null,30,3]
[31,"08:30:00","court 1","B1","SARC- Notorious D.I.G.","SARC- Sand Diggers",18,13,"SARC- Notorious D.I.G.",5,null,"D","SARC- Mojo Risin ",1,2,null,31,3]
[32,null,"court 2","B1","SARC- $et for Life","SARC- Unprotected Sets",18,1,"SARC- $et for Life",17,null,"D","SARC- Dirt Devils",2,1,null,32,3]
[33,null,"court 3","B2","LKP- Block You Like a Hurricane","GS- Sand Gators",18,6,"LKP- Block You Like a Hurricane",12]
[34,null,"court 4","B2","GS- Vicious & Delicious","LKP- Bumpn' Uglies",18,10,"LKP- Bumpn' Uglies",8]
[35,null,"court 5","C1","SARC- Sets on the Beach","SARC- I'd Hit That",21,15,"SARC- I'd Hit That",6]
[36,null,"court 6","C1","SO- Team Kona","SARC- Good Bumps, Nice Sets",21,6,"SO- Team Kona",15]
[37,"09:00:00","court 1","A2","NR- Hit That Thang","SO- Kiss My Ace",18,4,"SO- Kiss My Ace",14]
[38,null,"court 2","A2","LKP- Pass It Around","LKP- Will Play for Sets",18,4,"LKP- Will Play for Sets",14]
[39,null,"court 3","D2","SARC- Mojo Risin ","GS- Rhymes with Stupid",18,6,"GS- Rhymes with Stupid",12]
[40,null,"court 4","D2","CT- Concrete Feet","GS- El Toro's Revenge",18,9,"GS- El Toro's Revenge",9]
[41,"09:30:00","court 1","D1","SARC- Here for Beer","SARC- Mizfits",18,10,"SARC- Here for Beer",8]
[42,null,"court 2","D1","SARC- Raleigh Brawl","SARC- Dirt Devils",19,17,"SARC- Raleigh Brawl",2]
[43,null,"court 3","A1","CT- Spikological Warfare","NR- Six Pack Attack",19,17,"NR- Six Pack Attack",2]
[44,null,"court 4","A1","SARC- Volleywood","LKP- Air Vectors",18,8,"LKP- Air Vectors",10]
[45,"10:00:00","court 1","D2","GS- El Toro's Revenge","SARC- Mojo Risin ",21,7,"GS- El Toro's Revenge",14]
[46,null,"court 2","D2","CT- Concrete Feet","GS- Rhymes with Stupid",20,18,"CT- Concrete Feet",2]
[47,null,"court 3","A2","SO- Kiss My Ace","LKP- Pass It Around",18,9,"LKP- Pass It Around",9]
[48,null,"court 4","A2","NR- Hit That Thang","LKP- Will Play for Sets",18,6,"LKP- Will Play for Sets",12]

{"sheet":"Night ONE-option 2","index":1,"n_rows":50,"n_cols":14,"rows_kept":50,"cut":false,"hidden":true,"merged":[]}
["Night 1","ALL at Springdale"]
["# games","time","Courts",null,null,null,null,null,null,null,"NO BREAK","30 MIN","60 MIN","90 MIN"]
[1,"06:00:00","court 1","C",9,10,null,null,null,"A",null,1,1]
[2,null,"court 2","C",11,12,null,null,null,"B",null,1,1]
[3,null,"court 3","D",13,14,null,null,null,"C",null,1,1]
[4,null,"court 4","D",15,16,null,null,null,"D",null,1,1]
[5,null,"court 5","E",17,18,null,null,null,"E",null,1,1]
[6,null,"court 6","E",19,20,null,null,null,"F",null,null,1,1]
[7,"06:30:00","court 1","A",1,2,null,null,null,"G",null,1,1]
[8,null,"court 2","A",3,4,null,null,null,"H",null,1,1]
[9,null,"court 3","G",25,26]
[10,null,"court 4","G",27,28]
[11,null,"court 5","F",21,22]
[12,null,"court 6","F",21,23]
[13,"07:00:00","court 1","B",5,6]
[14,null,"court 2","B",7,8]
[15,null,"court 3","C",9,11]
[16,null,"court 4","C",10,12]
[17,null,"court 5","D",13,15]
[18,null,"court 6","D",14,16]
[19,"07:30:00","court 1","A",2,4]
[20,null,"court 2","A",1,3]
[21,null,"court 3","E",17,19]
[22,null,"court 4","E",18,20]
[23,null,"court 5","H",29,30]
[24,null,"court 6","H",31,32]
[25,"08:00:00","court 1","B",6,8]
[26,null,"court 2","B",5,7]
[27,null,"court 3","F",24,21]
[28,null,"court 4","F",23,24]
[29,null,"court 5","G",25,27]
[30,null,"court 6","G",26,28]
[31,"08:30:00","court 1","E",20,17]
[32,null,"court 2","E",18,19]
[33,null,"court 3","D",16,13]
[34,null,"court 4","D",14,15]
[35,null,"court 5","C",12,9]
[36,null,"court 6","C",10,11]
[37,"09:00:00","court 1","A",4,1]
[38,null,"court 2","A",2,3]
[39,null,"court 3","H",29,31]
[40,null,"court 4","H",30,32]
[41,"09:30:00","court 1","B",8,5]
[42,null,"court 2","B",6,7]
[43,null,"court 3","G",28,25]
[44,null,"court 4","G",26,27]
[45,"10:00:00","court 1","F",22,23]
[46,null,"court 2","F",22,24]
[47,null,"court 3","H",32,29]
[48,null,"court 4","H",30,31]

{"sheet":"NIGHT TWO","index":2,"n_rows":145,"n_cols":28,"rows_kept":145,"cut":false,"hidden":false,"merged":[[0,6,0,7],[19,6,19,7],[61,6,61,7]]}
["Lake Park  A1 VS A2 Brackets  (A Division)",null,null,null,null,null,"Score",null,null,null,null,null,"RESULTS- After Night Two"]
[null,null,null,"Division","HOME","AWAY","W","L","Winner","Pt Diff",null,"Division","Teams","Win","Loss",null,null,null,"Teams on Lake Park",null,"Team","No Break","30 min","60 min",null,null,"ct 1","ct 3"]
[1,"06:00:00","court 1","A","SARC- Volleywood","NR- Hit That Thang",21,7,"SARC- Volleywood",{"$f":"G3-H3","v":14},null,"A","LKP- Will Play for Sets",{"$f":"COUNTIF('Night ONE'!I$3:I$50,M3)+COUNTIF(I$3:I$145,M3)","v":4},{"$f":"7-N3","v":3},null,null,null,"SARC- Volleywood",null,1,null,3,null,null,1,2,2]
[2,null,"court 2","A","NR- Six Pack Attack","LKP- Pass It Around",21,16,"LKP- Pass It Around",{"$f":"G4-H4","v":5},null,"A","LKP- Pass It Around",{"$f":"COUNTIF('Night ONE'!I$3:I$50,M4)+COUNTIF(I$3:I$145,M4)","v":5},2,null,null,null,"NR- Six Pack Attack",null,2,null,3,null,null,2,2,2]
[3,"06:30:00","court 1","A","CT- Spikological Warfare","SO- Kiss My Ace",21,9,"CT- Spikological Warfare",12,null,"A","CT- Spikological Warfare",{"$f":"COUNTIF('Night ONE'!I$3:I$50,M5)+COUNTIF(I$3:I$145,M5)","v":2},5,null,null,null,"CT- Spikological Warfare",null,3,null,3,null,null,3,2,2]
[4,null,"court 2","A","LKP- Air Vectors","LKP- Will Play for Sets",21,10,"LKP- Air Vectors",11,null,"A","NR- Hit That Thang",{"$f":"COUNTIF('Night ONE'!I$3:I$50,M6)+COUNTIF(I$3:I$145,M6)","v":1},6,null,null,null,"LKP- Air Vectors",null,4,null,3,null,null,4,2,2]
[5,"07:00:00","court 1","A","SARC- Volleywood","LKP- Pass It Around",21,11,"LKP- Pass It Around",10,null,"A","NR- Six Pack Attack",{"$f":"COUNTIF('Night ONE'!I$3:I$50,M7)+COUNTIF(I$3:I$145,M7)","v":2},5,null,null,null,"NR- Hit That Thang",null,5,null,2,1,null,5,2,2]
[6,null,"court 2","A","NR- Six Pack Attack","NR- Hit That Thang",21,18,"NR- Hit That Thang",3,null,"A","SARC- Volleywood",{"$f":"COUNTIF('Night ONE'!I$3:I$50,M8)+COUNTIF(I$3:I$145,M8)","v":5},2,null,null,null,"LKP- Pass It Around",null,6,null,2,1,null,6,2,2]
[7,"07:30:00","court 1","A","CT- Spikological Warfare","LKP- Will Play for Sets",21,17,"LKP- Will Play for Sets",4,null,"A","SO- Kiss My Ace",{"$f":"COUNTIF('Night ONE'!I$3:I$50,M9)+COUNTIF(I$3:I$145,M9)","v":2},5,null,null,null,"SO- Kiss My Ace",null,7,1,2,null,null,7,2,2]
[8,null,"court 2","A","LKP- Air Vectors","SO- Kiss My Ace",21,9,"LKP- Air Vectors",12,null,"A","LKP- Air Vectors",{"$f":"COUNTIF('Night ONE'!I$3:I$50,M10)+COUNTIF(I$3:I$145,M10)","v":7},0,null,null,null,"LKP- Will Play for Sets",null,8,1,2,null,null,8,2,2]
[9,"08:00:00","court 1","A","LKP- Will Play for Sets","NR- Six Pack Attack",21,14,"LKP- Will Play for Sets",7,null,"B","SARC- $et for Life",{"$f":"COUNTIF('Night ONE'!I$3:I$50,M11)+COUNTIF(I$3:I$145,M11)","v":6},1,null,null,null,null,null,null,null,null,null,null,null,{"$f":"SUM(AA3:AA10)","v":16},{"$f":"SUM(AB3:AB10)","v":16}]
[10,null,"court 2","A","SO- Kiss My Ace","SARC- Volleywood",21,11,"SARC- Volleywood",10,null,"B","SARC- Sand Diggers",{"$f":"COUNTIF('Night ONE'!I$3:I$50,M12)+COUNTIF(I$3:I$145,M12)","v":2},5]
[11,"08:30:00","court 1","A","LKP- Pass It Around","LKP- Air Vectors",21,16,"LKP- Air Vectors",5,null,"B","LKP- Bumpn' Uglies",{"$f":"COUNTIF('Night ONE'!I$3:I$50,M13)+COUNTIF(I$3:I$145,M13)","v":3},4]
[12,null,"court 2","A","NR- Hit That Thang","CT- Spikological Warfare",21,4,"CT- Spikological Warfare",17,null,"B","SARC- Unprotected Sets",{"$f":"COUNTIF('Night ONE'!I$3:I$50,M14)+COUNTIF(I$3:I$145,M14)","v":2},5]
[13,"09:00:00","court 1","A","SO- Kiss My Ace","NR- Six Pack Attack",21,17,"NR- Six Pack Attack",4,null,"B","SARC- Notorious D.I.G.",{"$f":"COUNTIF('Night ONE'!I$3:I$50,M15)+COUNTIF(I$3:I$145,M15)","v":1},6]
[14,null,"court 2","A","LKP- Will Play for Sets","SARC- Volleywood",21,11,"SARC- Volleywood",10,null,"B","GS- Vicious & Delicious",{"$f":"COUNTIF('Night ONE'!I$3:I$50,M16)+COUNTIF(I$3:I$145,M16)","v":4},3]
[15,"09:30:00","court 1","A","NR- Hit That Thang","LKP- Air Vectors",21,16,"LKP- Air Vectors",5,null,"B","LKP- Block You Like a Hurricane",{"$f":"COUNTIF('Night ONE'!I$3:I$50,M17)+COUNTIF(I$3:I$145,M17)","v":5},2]
[16,null,"court 2","A","LKP- Pass It Around","CT- Spikological Warfare",21,14,"LKP- Pass It Around",7,null,"B","GS- Sand Gators",{"$f":"COUNTIF('Night ONE'!I$3:I$50,M18)+COUNTIF(I$3:I$145,M18)","v":5},2]
[null,null,null,null,null,null,null,null,null,null,null,"C","SARC- I'd Hit That",{"$f":"COUNTIF('Night ONE'!I$3:I$50,M19)+COUNTIF(I$3:I$145,M19)","v":4},3]
["Greystone-  C1 vs C2 Brackets  (C Division)",null,null,null,null,null,"Score",null,null,null,null,"C","LKP- Casual Sets",{"$f":"COUNTIF('Night ONE'!I$3:I$50,M20)+COUNTIF(I$3:I$145,M20)","v":4},3]
[null,null,null,"Division","HOME","AWAY","W","L","Winner","Pt Diff",null,"C","GS- 50 Shades of Greystone",{"$f":"COUNTIF('Night ONE'!I$3:I$50,M21)+COUNTIF(I$3:I$145,M21)","v":5},2,null,null,null,"Teams at Greystone"]
[1,"06:00:00","court 1","C","SO- Team Kona","CT- Volley Llamas",21,12,"SO- Team Kona",{"$f":"G22-H22","v":9},null,"C","SARC- Good Bumps, Nice Sets",{"$f":"COUNTIF('Night ONE'!I$3:I$50,M22)+COUNTIF(I$3:I$145,M22)","v":0},7,null,null,null,"SO- Team Kona"]
[2,null,"court 2","C","SARC- I'd Hit That","LKP- Casual Sets",21,14,"LKP- Casual Sets",{"$f":"G23-H23","v":7},null,"C","HG- Swingrays",{"$f":"COUNTIF('Night ONE'!I$3:I$50,M23)+COUNTIF(I$3:I$145,M23)","v":3},4,null,null,null,"SARC- I'd Hit That"]
[3,"06:30:00","court 1","C","SARC- Sets on the Beach","GS- 50 Shades of Greystone",21,7,"SARC- Sets on the Beach",14,null,"C","CT- Volley Llamas",{"$f":"COUNTIF('Night ONE'!I$3:I$50,M24)+COUNTIF(I$3:I$145,M24)","v":1},6,null,null,null,"SARC- Sets on the Beach"]
[4,null,"court 2","C","SARC- Good Bumps, Nice Sets","HG- Swingrays",21,12,"HG- Swingrays",9,null,"C","SO- Team Kona",{"$f":"COUNTIF('Night ONE'!I$3:I$50,M25)+COUNTIF(I$3:I$145,M25)","v":5},2,null,null,null,"SARC- Good Bumps, Nice Sets"]
[5,"07:00:00","court 1","C","SO- Team Kona","LKP- Casual Sets",21,12,"SO- Team Kona",9,null,"C","SARC- Sets on the Beach",{"$f":"COUNTIF('Night ONE'!I$3:I$50,M26)+COUNTIF(I$3:I$145,M26)","v":6},1,null,null,null,"CT- Volley Llamas"]
[6,null,"court 2","C","SARC- I'd Hit That","CT- Volley Llamas",21,16,"SARC- I'd Hit That",5,null,"D","SARC- Raleigh Brawl",{"$f":"COUNTIF('Night ONE'!I$3:I$50,M27)+COUNTIF(I$3:I$145,M27)","v":4},3,null,null,null,"LKP- Casual Sets"]
[7,"07:30:00","court 1","C","SARC- Sets on the Beach","HG- Swingrays",21,17,"SARC- Sets on the Beach",4,null,"D","CT- Concrete Feet",{"$f":"COUNTIF('Night ONE'!I$3:I$50,M28)+COUNTIF(I$3:I$145,M28)","v":4},3,null,null,null,"GS- 50 Shades of Greystone"]
[8,null,"court 2","C","SARC- Good Bumps, Nice Sets","GS- 50 Shades of Greystone",21,18,"GS- 50 Shades of Greystone",3,null,"D","GS- Rhymes with Stupid",{"$f":"COUNTIF('Night ONE'!I$3:I$50,M29)+COUNTIF(I$3:I$145,M29)","v":1},6,null,null,null,"HG- Swingrays"]
[9,"08:00:00","court 1","C","HG- Swingrays","SARC- I'd Hit That",21,5,"SARC- I'd Hit That",16,null,"D","GS- El Toro's Revenge",{"$f":"COUNTIF('Night ONE'!I$3:I$50,M30)+COUNTIF(I$3:I$145,M30)","v":6},1]
[10,null,"court 2","C","GS- 50 Shades of Greystone","SO- Team Kona",21,12,"GS- 50 Shades of Greystone",9,null,"D","SARC- Mizfits",{"$f":"COUNTIF('Night ONE'!I$3:I$50,M31)+COUNTIF(I$3:I$145,M31)","v":1},6]
[11,"08:30:00","court 1","C","LKP- Casual Sets","SARC- Good Bumps, Nice Sets",21,11,"LKP- Casual Sets",10,null,"D","SARC- Here for Beer",{"$f":"COUNTIF('Night ONE'!I$3:I$50,M32)+COUNTIF(I$3:I$145,M32)","v":4},3]
[12,null,"court 2","C","CT- Volley Llamas","SARC- Sets on the Beach",21,6,"SARC- Sets on the Beach",15,null,"D","SARC- Mojo Risin ",{"$f":"COUNTIF('Night ONE'!I$3:I$50,M33)+COUNTIF(I$3:I$145,M33)","v":3},4]
[13,"09:00:00","court 1","C","GS- 50 Shades of Greystone","SARC- I'd Hit That",21,15,"GS- 50 Shades of Greystone",6,null,"D","SARC- Dirt Devils",{"$f":"COUNTIF('Night ONE'!I$3:I$50,M34)+COUNTIF(I$3:I$145,M34)","v":5},2]
[14,null,"court 2","C","HG- Swingrays","SO- Team Kona",21,9,"SO- Team Kona",12]
[15,"09:30:00","court 1","C","CT- Volley Llamas","SARC- Good Bumps, Nice Sets",21,17,"CT- Volley Llamas",4]
[16,null,"court 2","C","LKP- Casual Sets","SARC- Sets on the Beach",21,14,"SARC- Sets on the Beach",7]
[]
["SARC Red-  B1 vs B2 Brackets  (B Division)",null,null,null,null,null,"Score"]
[null,null,null,"Division","HOME","AWAY","W","L","Winner","Pt Diff",null,null,null,null,null,null,null,null,"Teams on SARC Blue Courts"]
[null,"06:00:00","court 1","B","SARC- Unprotected Sets","GS- Vicious & Delicious",null,null,null,"N/A",null,null,null,null,null,null,null,null,"SARC- $et for Life"]
[null,null,"court 2","B","SARC- Sand Diggers","LKP- Block You Like a Hurricane",null,null,null,"N/A",null,null,null,null,null,null,null,null,"SARC- Sand Diggers"]
[null,"06:30:00","court 1",null,"Sponsor #1","Sponsor #2",null,null,null,"N/A",null,null,null,null,null,null,null,null,"SARC- Notorious D.I.G."]
[null,null,"court 2","B","SARC- Notorious D.I.G.","GS- Sand Gators",null,null,null,"N/A",null,null,null,null,null,null,null,null,"SARC- Unprotected Sets"]
[null,"07:00:00","court 1","B","SARC- $et for Life","LKP- Bumpn' Uglies",null,null,null,"N/A",null,null,null,null,null,null,null,null,"LKP- Block You Like a Hurricane"]
[null,null,"court 2","B","GS- Sand Gators","SARC- Sand Diggers",null,null,null,"N/A",null,null,null,null,null,null,null,null,"LKP- Bumpn' Uglies"]
[null,"07:30:00","court 1",null,"Sponsor #1","Sponsor #2",null,null,null,"N/A",null,null,null,null,null,null,null,null,"GS- Vicious & Delicious"]
[null,null,"court 2","B","GS- Vicious & Delicious","SARC- $et for Life",null,null,null,"N/A",null,null,null,null,null,null,null,null,"GS- Sand Gators"]
[null,"08:00:00","court 1","B","LKP- Bumpn' Uglies","SARC- Unprotected Sets",null,null,null,"N/A"]
[null,null,"court 2","B","LKP- Block You Like a Hurricane","SARC- Notorious D.I.G.",null,null,null,"N/A"]
[null,"08:30:00","court 3","B","GS- Vicious & Delicious","SARC- Sand Diggers",null,null,null,"N/A"]
[null,null,"court 4","B","GS- Sand Gators","SARC- $et for Life",null,null,null,"N/A"]
[null,"09:00:00","court 3","B","LKP- Block You Like a Hurricane","SARC- Unprotected Sets",null,null,null,"N/A"]
[null,null,"court 4","B","LKP- Bumpn' Uglies","SARC- Notorious D.I.G.",null,null,null,"N/A"]
[null,"09:30:00","court 3","B","SARC- $et for Life","LKP- Block You Like a Hurricane",null,null,null,"N/A"]
[null,null,"court 4","B","SARC- Sand Diggers","LKP- Bumpn' Uglies",null,null,null,"N/A"]
[null,"10:00:00","court 3","B","SARC- Notorious D.I.G.","GS- Vicious & Delicious",null,null,null,"N/A"]
[null,null,"court 4","B","SARC- Unprotected Sets","GS- Sand Gators",null,null,null,"N/A"]
[]
[]
[]
["SARC Blue-   D1 vs D2  Brackets  (D Division)",null,null,null,null,null,"Score"]
[null,null,null,"Division","HOME","AWAY","W","L","Winner","Pt Diff"]
[null,"06:00:00","court 3","D ","SARC- Here for Beer","GS- El Toro's Revenge",null,null,null,"N/A"]
[null,null,"court 4","D ","SARC- Dirt Devils","GS- Rhymes with Stupid",null,null,null,"N/A",null,null,null,null,null,null,null,null,"Teams at SARC"]
[null,"06:30:00","court 3","D ","SARC- Raleigh Brawl","CT- Concrete Feet",null,null,null,"N/A",null,null,null,null,null,null,null,null,"SARC- Raleigh Brawl"]
[null,null,"court 4","D ","SARC- Mizfits","SARC- Mojo Risin ",null,null,null,"N/A",null,null,null,null,null,null,null,null,"SARC- Mizfits"]
[null,"07:00:00","court 3","D ","SARC- Here for Beer","GS- Rhymes with Stupid",null,null,null,"N/A",null,null,null,null,null,null,null,null,"SARC- Here for Beer"]
[null,null,"court 4","D ","SARC- Dirt Devils","GS- El Toro's Revenge",null,null,null,"N/A",null,null,null,null,null,null,null,null,"SARC- Dirt Devils"]
[null,"07:30:00","court 3","D ","SARC- Raleigh Brawl","SARC- Mojo Risin ",null,null,null,"N/A",null,null,null,null,null,null,null,null,"CT- Concrete Feet"]
[null,null,"court 4","D ","SARC- Mizfits","CT- Concrete Feet",null,null,null,"N/A",null,null,null,null,null,null,null,null,"SARC- Mojo Risin "]
[null,"08:00:00","court 3","D ","SARC- Mojo Risin ","SARC- Dirt Devils",null,null,null,"N/A",null,null,null,null,null,null,null,null,"GS- El Toro's Revenge"]
[null,null,"court 4","D ","CT- Concrete Feet","SARC- Here for Beer",null,null,null,"N/A",null,null,null,null,null,null,null,null,"GS- Rhymes with Stupid"]
[null,"08:30:00","court 1",null,"Sponsor #1","Sponsor #2",null,null,null,"N/A"]
[null,null,"court 2","D ","GS- Rhymes with Stupid","SARC- Mizfits",null,null,null,"N/A"]
[null,"09:00:00","court 1","D ","GS- El Toro's Revenge","SARC- Raleigh Brawl",null,null,null,"N/A"]
[null,null,"court 2","D ","SARC- Mojo Risin ","SARC- Here for Beer",null,null,null,"N/A"]
[null,"09:30:00","court 1","D ","CT- Concrete Feet","SARC- Dirt Devils",null,null,null,"N/A"]
[null,null,"court 2","D ","GS- El Toro's Revenge","SARC- Mizfits",null,null,null,"N/A"]
[null,"10:00:00","court 1","D ","GS- Rhymes with Stupid","SARC- Raleigh Brawl",null,null,null,"N/A"]
[null,null,"court 2",null,null,null,null,null,null,"N/A"]
[]
[]
[]
[]
[]
[]
[]
["Subject to change due to NUMBER of Teams in Sponsor Tournament"]
["SPONSOR TOURNAMENT-  6 teams",null,null,null,null,null,null,null,null,null,"SPONSOR TOURNAMENT-  5 teams",null,null,null,null,null,null,null,null,null,"SPONSOR TOURNAMENT-  4 teams"]
["18:30:00",null,"GRASS   CT 5",null,"Sponsor #1","Sponsor #2",null,null,null,null,"18:30:00",null,"GRASS   CT 5",null,"Sponsor #1","Sponsor #2",null,null,null,null,"19:00:00",null,"GRASS   CT 5"]
[null,null,"GRASS   CT 6",null,"Sponsor #3","Sponsor #4",null,null,null,null,null,null,"GRASS   CT 6",null,"Sponsor #3","Sponsor #4",null,null,null,null,null,null,"GRASS   CT 6"]
[null,null,"court 4",null,"Sponsor #5","Sponsor #6",null,null,null,null,null,null,null,null,"Sponsor #5","(Bye)"]
[]
["19:30:00",null,"court 1",null,"Sponsor #1","Sponsor #3",null,null,null,null,"19:30:00",null,"court 1",null,"Sponsor #1","Sponsor #3",null,null,null,null,"20:00:00",null,"court 1"]
[null,null,"court 2",null,"Sponsor #5","Sponsor #2",null,null,null,null,null,null,"court 2",null,"Sponsor #5","Sponsor #2",null,null,null,null,null,null,"court 2"]
[null,null,"court 3",null,"Sponsor #4","Sponsor #6",null,null,null,null,null,null,null,null,"Sponsor #4","(Bye)"]
[]
["20:30:00",null,"court 1",null,"Sponsor #2","Sponsor #6",null,null,null,null,"20:30:00",null,"court 1",null,"Sponsor #1","Sponsor #4",null,null,null,null,"21:00:00",null,"court 1"]
[null,null,"court 2",null,"Sponsor #5","Sponsor #3",null,null,null,null,null,null,"court 2",null,"Sponsor #3","Sponsor #5",null,null,null,null,null,null,"court 2"]
[null,null,"court 3",null,"Sponsor #1","Sponsor #4",null,null,null,null,null,null,null,null,"Sponsor #2","(Bye)"]
[]
["21:30:00",null,"court 1",null,"Championship",null,null,null,null,null,"21:30:00",null,"court 1",null,"Sponsor #4","Sponsor #2"]
[null,null,null,null,null,null,null,null,null,null,null,null,"court 2",null,"Sponsor #5","(the Winner of the A and C game)"]
[]
[]
[]
["Springdale Combined Schedule (B, D, and Sponsor Divisions)",null,null,null,null,null,"Score"]
[null,null,null,"Division","HOME","AWAY","W","L","Winner","Pt Diff"]
[null,"06:00:00","court 1","B","SARC- Unprotected Sets","GS- Vicious & Delicious",21,16,"GS- Vicious & Delicious",{"$f":"G110-H110","v":5}]
[null,null,"court 2","B","SARC- Sand Diggers","LKP- Block You Like a Hurricane",21,18,"LKP- Block You Like a Hurricane",{"$f":"G111-H111","v":3}]
[null,null,"court 3","D ","SARC- Here for Beer","GS- El Toro's Revenge",21,8,"SARC- Here for Beer",13]
[null,null,"court 4","D ","SARC- Dirt Devils","GS- Rhymes with Stupid",21,6,"SARC- Dirt Devils",15]
[null,"06:30:00","court 1",null,"Sponsor #1","Sponsor #2",null,null,null,0]
[null,null,"court 2","B","SARC- Notorious D.I.G.","GS- Sand Gators",21,16,"GS- Sand Gators",5]
[null,null,"court 3","D ","SARC- Raleigh Brawl","CT- Concrete Feet",21,8,"CT- Concrete Feet",13]
[null,null,"court 4","D ","SARC- Mizfits","SARC- Mojo Risin ",21,9,"SARC- Mojo Risin ",12]
[null,"07:00:00","court 1","B","SARC- $et for Life","LKP- Bumpn' Uglies",21,10,"SARC- $et for Life",11]
[null,null,"court 2","B","GS- Sand Gators","SARC- Sand Diggers",22,20,"SARC- Sand Diggers",2]
[null,null,"court 3","D ","SARC- Here for Beer","GS- Rhymes with Stupid",21,5,"SARC- Here for Beer",16]
[null,null,"court 4","D ","SARC- Dirt Devils","GS- El Toro's Revenge",21,17,"GS- El Toro's Revenge",4]
[null,"07:30:00","court 1",null,"Sponsor #1","Sponsor #2",null,null,null,0]
[null,null,"court 2","B","GS- Vicious & Delicious","SARC- $et for Life",21,19,"SARC- $et for Life",2]
[null,null,"court 3","D ","SARC- Raleigh Brawl","SARC- Mojo Risin ",21,18,"SARC- Raleigh Brawl",3]
[null,null,"court 4","D ","SARC- Mizfits","CT- Concrete Feet",21,19,"CT- Concrete Feet",2]
[null,"08:00:00","court 1","B","LKP- Bumpn' Uglies","SARC- Unprotected Sets",21,13,"LKP- Bumpn' Uglies",8]
[null,null,"court 2","B","LKP- Block You Like a Hurricane","SARC- Notorious D.I.G.",21,19,"LKP- Block You Like a Hurricane",2]
[null,null,"court 3","D ","SARC- Mojo Risin ","SARC- Dirt Devils",21,6,"SARC- Dirt Devils",15]
[null,null,"court 4","D ","CT- Concrete Feet","SARC- Here for Beer",21,16,"CT- Concrete Feet",5]
[null,"08:30:00","court 1",null,"Sponsor #1","Sponsor #2",null,null,null,0]
[null,null,"court 2","D ","GS- Rhymes with Stupid","SARC- Mizfits",21,15,"SARC- Mizfits",6]
[null,null,"court 3","B","GS- Vicious & Delicious","SARC- Sand Diggers",21,9,"GS- Vicious & Delicious",12]
[null,null,"court 4","B","GS- Sand Gators","SARC- $et for Life",24,22,"GS- Sand Gators",2]
[null,"09:00:00","court 1","D ","GS- El Toro's Revenge","SARC- Raleigh Brawl",21,16,"GS- El Toro's Revenge",5]
[null,null,"court 2","D ","SARC- Mojo Risin ","SARC- Here for Beer",21,18,"SARC- Mojo Risin ",3]
[null,null,"court 3","B","LKP- Block You Like a Hurricane","SARC- Unprotected Sets",21,13,"LKP- Block You Like a Hurricane",8]
[null,null,"court 4","B","LKP- Bumpn' Uglies","SARC- Notorious D.I.G.",21,13,"LKP- Bumpn' Uglies",8]
[null,"09:30:00","court 1","D ","CT- Concrete Feet","SARC- Dirt Devils",21,10,"SARC- Dirt Devils",11]
[null,null,"court 2","D ","GS- El Toro's Revenge","SARC- Mizfits",21,7,"GS- El Toro's Revenge",14]
[null,null,"court 3","B","SARC- $et for Life","LKP- Block You Like a Hurricane",23,21,"SARC- $et for Life",2]
[null,null,"court 4","B","SARC- Sand Diggers","LKP- Bumpn' Uglies",21,15,"SARC- Sand Diggers",6]
[null,"10:00:00","court 1","B","SARC- Notorious D.I.G.","GS- Vicious & Delicious",21,15,"GS- Vicious & Delicious",6]
[null,null,"court 2","B","SARC- Unprotected Sets","GS- Sand Gators",21,19,"GS- Sand Gators",2]
[null,null,"court 3","D ","GS- Rhymes with Stupid","SARC- Raleigh Brawl",21,18,"SARC- Raleigh Brawl",3]
[null,null,"court 4",null,null,null,null,null,null,0]

{"sheet":"NIGHT THREE","index":3,"n_rows":81,"n_cols":31,"rows_kept":81,"cut":false,"hidden":false,"merged":[[0,6,0,7],[21,6,21,7],[63,6,63,7],[42,6,42,7]]}
["SARC Red-   1st Vertical Bracket Cross-section of Divisions",null,null,null,null,null,"Score",null,null,null,null,null,"RESULTS- After Night Three"]
[null,null,null,null,"HOME","AWAY","W","L","Winner","Pt Diff",null,"Division","2017 Teams","Win","Loss",".","PT DIFF",null,"Teams on SARC Red Courts",null,null,null,null,"Team","No Break","30 min","60 min",null,null,"ct 1","ct 2"]
[1,"06:00:00","court 1",null,"SARC- Sand Diggers","SARC- I'd Hit That",21,3,"SARC- Sand Diggers",{"$f":"G3-H3","v":18},null,"A","LKP- Will Play for Sets",{"$f":"COUNTIF('Night ONE'!I$3:I$50,M3)+COUNTIF('NIGHT TWO'!I$3:I$149,M3)+COUNTIF(I$3:I$81,M3)","v":7},{"$f":"11-N3","v":4},null,26,null,"SARC- Sand Diggers",null,null,null,null,1,1,null,2,null,1,2,2]
[2,null,"court 3",null,"SARC- Raleigh Brawl","SARC- Volleywood",21,9,"SARC- Volleywood",{"$f":"G4-H4","v":12},null,"A","LKP- Pass It Around",{"$f":"COUNTIF('Night ONE'!I$3:I$50,M4)+COUNTIF('NIGHT TWO'!I$3:I$149,M4)+COUNTIF(I$3:I$81,M4)","v":8},3,null,44,null,"SARC- Mizfits",null,null,null,null,2,1,1,1,null,2,2,2]
[3,"06:30:00","court 1",null,"SARC- Mizfits","SO- Team Kona",21,8,"SO- Team Kona",13,null,"A","CT- Spikological Warfare",{"$f":"COUNTIF('Night ONE'!I$3:I$50,M5)+COUNTIF('NIGHT TWO'!I$3:I$149,M5)+COUNTIF(I$3:I$81,M5)","v":6},5,null,56,null,"SARC- $et for Life",null,null,null,null,9,1,2,null,null,9,2,2]
[4,null,"court 3",null,"NR- Six Pack Attack","SARC- Sand Diggers",21,19,"NR- Six Pack Attack",2,null,"A","NR- Hit That Thang",{"$f":"COUNTIF('Night ONE'!I$3:I$50,M6)+COUNTIF('NIGHT TWO'!I$3:I$149,M6)+COUNTIF(I$3:I$81,M6)","v":3},8,null,-68,null,"SARC- Raleigh Brawl",null,null,null,null,10,1,1,1,null,10,2,2]
[5,"07:00:00","court 1",null,"SARC- Volleywood","SARC- $et for Life",21,19,"SARC- Volleywood",2,null,"A","NR- Six Pack Attack",{"$f":"COUNTIF('Night ONE'!I$3:I$50,M7)+COUNTIF('NIGHT TWO'!I$3:I$149,M7)+COUNTIF(I$3:I$81,M7)","v":5},6,null,-15,null,"SARC- I'd Hit That",null,null,null,null,17,1,1,1,null,17,2,2]
[6,null,"court 3",null,"SARC- I'd Hit That","SARC- Mizfits",21,5,"SARC- I'd Hit That",16,null,"A","SARC- Volleywood",{"$f":"COUNTIF('Night ONE'!I$3:I$50,M8)+COUNTIF('NIGHT TWO'!I$3:I$149,M8)+COUNTIF(I$3:I$81,M8)","v":8},3,null,56,null,"NR- Six Pack Attack",null,null,null,null,18,null,3,null,null,18,2,2]
[7,"07:30:00","court 1",null,"SO- Team Kona","SARC- Raleigh Brawl",21,9,"SO- Team Kona",12,null,"A","SO- Kiss My Ace",{"$f":"COUNTIF('Night ONE'!I$3:I$50,M9)+COUNTIF('NIGHT TWO'!I$3:I$149,M9)+COUNTIF(I$3:I$81,M9)","v":5},{"$f":"11-N9","v":6},null,-10,null,"SO- Team Kona",null,null,null,null,25,1,2,null,null,25,2,2]
[8,null,"court 3",null,"NR- Six Pack Attack","SARC- I'd Hit That",21,18,"NR- Six Pack Attack",3,null,"A","LKP- Air Vectors",{"$f":"COUNTIF('Night ONE'!I$3:I$50,M10)+COUNTIF('NIGHT TWO'!I$3:I$149,M10)+COUNTIF(I$3:I$81,M10)","v":11},0,null,105,null,"SARC- Volleywood",null,null,null,null,26,null,3,null,null,26,2,2]
[9,"08:00:00","court 1",null,"SARC- Sand Diggers","SARC- Volleywood",21,16,"SARC- Sand Diggers",5,null,"B","SARC- $et for Life",{"$f":"COUNTIF('Night ONE'!I$3:I$50,M11)+COUNTIF('NIGHT TWO'!I$3:I$149,M11)+COUNTIF(I$3:I$81,M11)","v":9},2,null,72,null,null,null,null,null,null,null,null,null,null,null,null,{"$f":"SUM(AD3:AD10)","v":16},{"$f":"SUM(AE3:AE10)","v":16}]
[10,null,"court 3",null,"SARC- $et for Life","SARC- Raleigh Brawl",21,4,"SARC- $et for Life",17,null,"B","SARC- Sand Diggers",{"$f":"COUNTIF('Night ONE'!I$3:I$50,M12)+COUNTIF('NIGHT TWO'!I$3:I$149,M12)+COUNTIF(I$3:I$81,M12)","v":5},6,null,18]
[11,"08:30:00","court 1",null,"SARC- Mizfits","NR- Six Pack Attack",21,4,"NR- Six Pack Attack",17,null,"B","LKP- Bumpn' Uglies",{"$f":"COUNTIF('Night ONE'!I$3:I$50,M13)+COUNTIF('NIGHT TWO'!I$3:I$149,M13)+COUNTIF(I$3:I$81,M13)","v":6},5,null,13]
[12,null,"court 3",null,"SARC- $et for Life","SO- Team Kona",21,16,"SARC- $et for Life",5,null,"B","SARC- Unprotected Sets",{"$f":"COUNTIF('Night ONE'!I$3:I$50,M14)+COUNTIF('NIGHT TWO'!I$3:I$149,M14)+COUNTIF(I$3:I$81,M14)","v":3},8,null,-71]
[13,"09:00:00","court 1",null,"SARC- I'd Hit That","SARC- Raleigh Brawl",21,17,"SARC- I'd Hit That",4,null,"B","SARC- Notorious D.I.G.",{"$f":"COUNTIF('Night ONE'!I$3:I$50,M15)+COUNTIF('NIGHT TWO'!I$3:I$149,M15)+COUNTIF(I$3:I$81,M15)","v":3},8,null,-56]
[14,null,"court 3",null,"SARC- Volleywood","SO- Team Kona",21,12,"SARC- Volleywood",9,null,"B","GS- Vicious & Delicious",{"$f":"COUNTIF('Night ONE'!I$3:I$50,M16)+COUNTIF('NIGHT TWO'!I$3:I$149,M16)+COUNTIF(I$3:I$81,M16)","v":6},5,null,15]
[15,"09:30:00","court 1",null,"NR- Six Pack Attack","SARC- $et for Life",21,12,"SARC- $et for Life",9,null,"B","LKP- Block You Like a Hurricane",{"$f":"COUNTIF('Night ONE'!I$3:I$50,M17)+COUNTIF('NIGHT TWO'!I$3:I$149,M17)+COUNTIF(I$3:I$81,M17)","v":8},3,null,45]
[16,null,"court 3",null,"SARC- Sand Diggers","SARC- Mizfits",21,7,"SARC- Sand Diggers",14,null,"B","GS- Sand Gators",{"$f":"COUNTIF('Night ONE'!I$3:I$50,M18)+COUNTIF('NIGHT TWO'!I$3:I$149,M18)+COUNTIF(I$3:I$81,M18)","v":8},3,null,42]
[null,null,null,null,null,null,null,null,null,null,null,"C","SARC- I'd Hit That",{"$f":"COUNTIF('Night ONE'!I$3:I$50,M19)+COUNTIF('NIGHT TWO'!I$3:I$149,M19)+COUNTIF(I$3:I$81,M19)","v":6},5,null,7]
[null,null,null,null,null,null,null,null,null,null,null,"C","LKP- Casual Sets",{"$f":"COUNTIF('Night ONE'!I$3:I$50,M20)+COUNTIF('NIGHT TWO'!I$3:I$149,M20)+COUNTIF(I$3:I$81,M20)","v":6},5,null,21]
[null,null,null,null,null,null,null,null,null,null,null,"C","GS- 50 Shades of Greystone",{"$f":"COUNTIF('Night ONE'!I$3:I$50,M21)+COUNTIF('NIGHT TWO'!I$3:I$149,M21)+COUNTIF(I$3:I$81,M21)","v":7},4,null,0]
["SARC Blue-   2nd Vertical Bracket Cross-section of Divisions",null,null,null,null,null,"Score",null,null,null,null,"C","SARC- Good Bumps, Nice Sets",{"$f":"COUNTIF('Night ONE'!I$3:I$50,M22)+COUNTIF('NIGHT TWO'!I$3:I$149,M22)+COUNTIF(I$3:I$81,M22)","v":0},11,null,-84]
[null,null,null,null,"HOME","AWAY","W","L","Winner","Pt Diff",null,"C","HG- Swingrays",{"$f":"COUNTIF('Night ONE'!I$3:I$50,M23)+COUNTIF('NIGHT TWO'!I$3:I$149,M23)+COUNTIF(I$3:I$81,M23)","v":5},6,null,-13,null,"Teams on SARC Blue Courts"]
[1,"06:00:00","court 2",null,"SARC- Unprotected Sets","SARC- Good Bumps, Nice Sets",21,19,"SARC- Unprotected Sets",{"$f":"G24-H24","v":2},null,"C","CT- Volley Llamas",{"$f":"COUNTIF('Night ONE'!I$3:I$50,M24)+COUNTIF('NIGHT TWO'!I$3:I$149,M24)+COUNTIF(I$3:I$81,M24)","v":1},10,null,-87,null,"SARC- Unprotected Sets"]
[2,null,"court 4",null,"SARC- Here for Beer","CT- Spikological Warfare",21,8,"CT- Spikological Warfare",{"$f":"G25-H25","v":13},null,"C","SO- Team Kona",{"$f":"COUNTIF('Night ONE'!I$3:I$50,M25)+COUNTIF('NIGHT TWO'!I$3:I$149,M25)+COUNTIF(I$3:I$81,M25)","v":7},4,null,52,null,"SARC- Dirt Devils"]
[3,"06:30:00","court 2",null,"SARC- Dirt Devils","SARC- Sets on the Beach",21,14,"SARC- Sets on the Beach",7,null,"C","SARC- Sets on the Beach",{"$f":"COUNTIF('Night ONE'!I$3:I$50,M26)+COUNTIF('NIGHT TWO'!I$3:I$149,M26)+COUNTIF(I$3:I$81,M26)","v":7},4,null,33,null,"SARC- Notorious D.I.G."]
[4,null,"court 4",null,"LKP- Air Vectors","SARC- Unprotected Sets",21,5,"LKP- Air Vectors",16,null,"D","SARC- Raleigh Brawl",{"$f":"COUNTIF('Night ONE'!I$3:I$50,M27)+COUNTIF('NIGHT TWO'!I$3:I$149,M27)+COUNTIF(I$3:I$81,M27)","v":4},7,null,-44,null,"SARC- Here for Beer"]
[5,"07:00:00","court 2",null,"CT- Spikological Warfare","SARC- Notorious D.I.G.",21,3,"CT- Spikological Warfare",18,null,"D","CT- Concrete Feet",{"$f":"COUNTIF('Night ONE'!I$3:I$50,M28)+COUNTIF('NIGHT TWO'!I$3:I$149,M28)+COUNTIF(I$3:I$81,M28)","v":5},6,null,-39,null,"SARC- Good Bumps, Nice Sets"]
[6,null,"court 4",null,"SARC- Good Bumps, Nice Sets","SARC- Dirt Devils",21,16,"SARC- Dirt Devils",5,null,"D","GS- Rhymes with Stupid",{"$f":"COUNTIF('Night ONE'!I$3:I$50,M29)+COUNTIF('NIGHT TWO'!I$3:I$149,M29)+COUNTIF(I$3:I$81,M29)","v":1},10,null,-101,null,"LKP- Air Vectors"]
[7,"07:30:00","court 2",null,"SARC- Sets on the Beach","SARC- Here for Beer",21,18,"SARC- Here for Beer",3,null,"D","GS- El Toro's Revenge",{"$f":"COUNTIF('Night ONE'!I$3:I$50,M30)+COUNTIF('NIGHT TWO'!I$3:I$149,M30)+COUNTIF(I$3:I$81,M30)","v":7},4,null,40,null,"SARC- Sets on the Beach"]
[8,null,"court 4",null,"LKP- Air Vectors","SARC- Good Bumps, Nice Sets",21,9,"LKP- Air Vectors",12,null,"D","SARC- Mizfits",{"$f":"COUNTIF('Night ONE'!I$3:I$50,M31)+COUNTIF('NIGHT TWO'!I$3:I$149,M31)+COUNTIF(I$3:I$81,M31)","v":1},10,null,-110,null,"CT- Spikological Warfare"]
[9,"08:00:00","court 2",null,"SARC- Unprotected Sets","CT- Spikological Warfare",21,2,"CT- Spikological Warfare",19,null,"D","SARC- Here for Beer",{"$f":"COUNTIF('Night ONE'!I$3:I$50,M32)+COUNTIF('NIGHT TWO'!I$3:I$149,M32)+COUNTIF(I$3:I$81,M32)","v":6},5,null,21]
[10,null,"court 4",null,"SARC- Notorious D.I.G.","SARC- Here for Beer",21,16,"SARC- Notorious D.I.G.",5,null,"D","SARC- Mojo Risin ",{"$f":"COUNTIF('Night ONE'!I$3:I$50,M33)+COUNTIF('NIGHT TWO'!I$3:I$149,M33)+COUNTIF(I$3:I$81,M33)","v":5},6,null,-21]
[11,"08:30:00","court 2",null,"SARC- Dirt Devils","LKP- Air Vectors",21,14,"LKP- Air Vectors",7,null,"D","SARC- Dirt Devils",{"$f":"COUNTIF('Night ONE'!I$3:I$50,M34)+COUNTIF('NIGHT TWO'!I$3:I$149,M34)+COUNTIF(I$3:I$81,M34)","v":7},4,null,53]
[12,null,"court 4",null,"SARC- Notorious D.I.G.","SARC- Sets on the Beach",21,14,"SARC- Notorious D.I.G.",7]
[13,"09:00:00","court 2",null,"SARC- Good Bumps, Nice Sets","SARC- Here for Beer",21,8,"SARC- Here for Beer",13]
[14,null,"court 4",null,"CT- Spikological Warfare","SARC- Sets on the Beach",21,11,"CT- Spikological Warfare",10]
[15,"09:30:00","court 2",null,"LKP- Air Vectors","SARC- Notorious D.I.G.",21,9,"LKP- Air Vectors",12]
[16,null,"court 4",null,"SARC- Unprotected Sets","SARC- Dirt Devils",21,9,"SARC- Dirt Devils",12]
[]
[]
[]
["LAKE PARK-   3rd Vertical Bracket Cross-section of Divisions",null,null,null,null,null,"Score"]
[null,null,null,null,"HOME","AWAY","W","L","Winner","Pt Diff"]
[1,"06:00:00","court 1",null,"LKP- Bumpn' Uglies","LKP- Casual Sets",21,16,"LKP- Casual Sets",{"$f":"G45-H45","v":5},null,null,null,null,null,null,null,null,"Teams at Lake Park"]
[2,null,"court 2",null,"CT- Concrete Feet","NR- Hit That Thang",21,17,"NR- Hit That Thang",{"$f":"G46-H46","v":4},null,null,null,null,null,null,null,null,"LKP- Bumpn' Uglies"]
[3,"06:30:00","court 1",null,"SARC- Mojo Risin ","CT- Volley Llamas",21,6,"SARC- Mojo Risin ",15,null,null,null,null,null,null,null,null,"SARC- Mojo Risin "]
[4,null,"court 2",null,"LKP- Pass It Around","LKP- Bumpn' Uglies",21,15,"LKP- Bumpn' Uglies",6,null,null,null,null,null,null,null,null,"LKP- Block You Like a Hurricane"]
[5,"07:00:00","court 1",null,"NR- Hit That Thang","LKP- Block You Like a Hurricane",21,16,"LKP- Block You Like a Hurricane",5,null,null,null,null,null,null,null,null,"CT- Concrete Feet"]
[6,null,"court 2",null,"LKP- Casual Sets","SARC- Mojo Risin ",21,18,"SARC- Mojo Risin ",3,null,null,null,null,null,null,null,null,"LKP- Casual Sets"]
[7,"07:30:00","court 1",null,"CT- Volley Llamas","CT- Concrete Feet",21,15,"CT- Concrete Feet",6,null,null,null,null,null,null,null,null,"LKP- Pass It Around"]
[8,null,"court 2",null,"LKP- Pass It Around","LKP- Casual Sets",21,10,"LKP- Pass It Around",11,null,null,null,null,null,null,null,null,"CT- Volley Llamas"]
[9,"08:00:00","court 1",null,"LKP- Bumpn' Uglies","NR- Hit That Thang",21,21,"LKP- Bumpn' Uglies",0,null,null,null,null,null,null,null,null,"NR- Hit That Thang"]
[10,null,"court 2",null,"LKP- Block You Like a Hurricane","CT- Concrete Feet",21,5,"LKP- Block You Like a Hurricane",16]
[11,"08:30:00","court 1",null,"SARC- Mojo Risin ","LKP- Pass It Around",21,8,"LKP- Pass It Around",13]
[12,null,"court 2",null,"LKP- Block You Like a Hurricane","CT- Volley Llamas",21,12,"LKP- Block You Like a Hurricane",9]
[13,"09:00:00","court 1",null,"LKP- Casual Sets","CT- Concrete Feet",21,7,"LKP- Casual Sets",14]
[14,null,"court 2",null,"NR- Hit That Thang","CT- Volley Llamas",21,17,"NR- Hit That Thang",4]
[15,"09:30:00","court 1",null,"LKP- Pass It Around","LKP- Block You Like a Hurricane",21,19,"LKP- Pass It Around",2]
[16,null,"court 2",null,"LKP- Bumpn' Uglies","SARC- Mojo Risin ",21,11,"LKP- Bumpn' Uglies",10]
[]
[]
[]
["GREYSTONE-   4th Vertical Bracket Cross-section of Divisions",null,null,null,null,null,"Score"]
[null,null,null,null,"HOME","AWAY","W","L","Winner","Pt Diff",null,null,null,null,null,null,null,null,"Teams at Greystone"]
[1,"06:00:00","court 1",null,"GS- Sand Gators","HG- Swingrays",21,10,"GS- Sand Gators",{"$f":"G66-H66","v":11},null,null,null,null,null,null,null,null,"GS- Sand Gators"]
[2,null,"court 2",null,"GS- El Toro's Revenge","SO- Kiss My Ace",21,17,"SO- Kiss My Ace",{"$f":"G67-H67","v":4},null,null,null,null,null,null,null,null,"GS- Rhymes with Stupid"]
[3,"06:30:00","court 1",null,"GS- Rhymes with Stupid","GS- 50 Shades of Greystone",21,12,"GS- 50 Shades of Greystone",9,null,null,null,null,null,null,null,null,"GS- Vicious & Delicious"]
[4,null,"court 2",null,"LKP- Will Play for Sets","GS- Sand Gators",21,11,"GS- Sand Gators",10,null,null,null,null,null,null,null,null,"GS- El Toro's Revenge"]
[5,"07:00:00","court 1",null,"SO- Kiss My Ace","GS- Vicious & Delicious",21,12,"SO- Kiss My Ace",9,null,null,null,null,null,null,null,null,"HG- Swingrays"]
[6,null,"court 2",null,"HG- Swingrays","GS- Rhymes with Stupid",21,2,"HG- Swingrays",19,null,null,null,null,null,null,null,null,"LKP- Will Play for Sets"]
[7,"07:30:00","court 1",null,"GS- 50 Shades of Greystone","GS- El Toro's Revenge",21,7,"GS- El Toro's Revenge",14,null,null,null,null,null,null,null,null,"GS- 50 Shades of Greystone"]
[8,null,"court 2",null,"LKP- Will Play for Sets","HG- Swingrays",21,14,"LKP- Will Play for Sets",7,null,null,null,null,null,null,null,null,"SO- Kiss My Ace"]
[9,"08:00:00","court 1",null,"GS- Sand Gators","SO- Kiss My Ace",21,14,"SO- Kiss My Ace",7]
[10,null,"court 2",null,"GS- Vicious & Delicious","GS- El Toro's Revenge",21,11,"GS- Vicious & Delicious",10]
[11,"08:30:00","court 1",null,"GS- Rhymes with Stupid","LKP- Will Play for Sets",21,3,"LKP- Will Play for Sets",18]
[12,null,"court 2",null,"GS- Vicious & Delicious","GS- 50 Shades of Greystone",21,9,"GS- Vicious & Delicious",12]
[13,"09:00:00","court 1",null,"HG- Swingrays","GS- El Toro's Revenge",21,16,"HG- Swingrays",5]
[14,null,"court 2",null,"SO- Kiss My Ace","GS- 50 Shades of Greystone",21,17,"GS- 50 Shades of Greystone",4]
[15,"09:30:00","court 1",null,"LKP- Will Play for Sets","GS- Vicious & Delicious",21,19,"LKP- Will Play for Sets",2]
[16,null,"court 2",null,"GS- Sand Gators","GS- Rhymes with Stupid",21,8,"GS- Sand Gators",13]

{"sheet":"Championship Night","index":4,"n_rows":69,"n_cols":21,"rows_kept":69,"cut":false,"hidden":false,"merged":[[4,15,7,15]]}
[null,"Growler Championship Night- 32 Team Single Elimination",null,null,null,null,null,null,null,"Final Seeding ",null,null,null,null,null,"Raffle","Final 4",null,"Championship"]
[]
[]
[null,"17:30:00",null,"18:00:00",null,"18:30:00",null,"19:00:00",null,"19:30:00",null,"20:00:00",null,"20:30:00",null,"21:00:00","21:30:00",null,"22:00:00"]
[null,null,null,null,null,null,null,null,null,null,null,null,null,null,null,"Break for Announce-ments and Raffle"]
[null,null,null,null,1,"LKP- Air Vectors"]
[null,null,null,null,null,1,null,null,null,"LKP- Air Vectors"]
[null,null,null,null,32,"GS- Rhymes with Stupid"]
[null,null,null,null,null,"court 1",null,null,null,17,null,null,null,"LKP- Air Vectors"]
[16,"LKP- Casual Sets"]
[null,2,null,null,null,null,null,null,null,"LKP- Casual Sets"]
[17,"SARC- Here for Beer",null,null,null,null,null,null,null,"court 1"]
[null,"court 4",null,null,null,null,null,null,null,null,null,null,null,25,null,null,"LKP- Air Vectors"]
[null,null,null,null,null,null,8,"GS- Vicious & Delicious"]
[null,null,null,null,null,null,null,3,null,null,null,"SARC- I'd Hit That"]
[null,null,null,null,null,null,25,"SARC- I'd Hit That"]
[null,null,null,null,null,null,null,"court 4",null,null,null,18,null,"SARC- $et for Life"]
[null,null,9,"SARC- $et for Life",null,null,null,null,null,null,null,null,null,"court 1"]
[null,null,null,4,null,null,null,null,null,null,null,"SARC- $et for Life"]
[null,null,24,"SARC- Mojo Risin ",null,null,null,null,null,null,null,"court 4"]
[null,null,null,"court 1",null,null,null,null,null,null,null,null,null,null,null,null,29,null,"LKP- Air Vectors"]
[null,null,null,null,4,"GS- El Toro's Revenge"]
[null,null,null,null,null,5]
[null,null,null,null,29,"CT- Concrete Feet"]
[null,null,null,null,null,"court 4",null,null,null,19,null,null,null,"SO- Team Kona"]
[13,"SO- Team Kona"]
[null,6,null,null,null,null,null,null,null,"SO- Team Kona"]
[20,"NR- Hit That Thang",null,null,null,null,null,null,null,"court 4"]
[null,"court 1",null,null,null,null,null,null,null,null,null,null,null,26,null,null,"CT- Spikological Warfare"]
[null,null,null,null,null,null,5,"CT- Spikological Warfare",null,null,null,null,null,null,null,null,"court 1"]
[null,null,null,null,null,null,null,7,null,null,null,"CT- Spikological Warfare"]
[null,null,null,null,null,null,28,"SARC- Raleigh Brawl"]
[null,null,null,null,null,null,null,"court 1",null,null,null,20,null,"CT- Spikological Warfare"]
[null,null,12,"LKP- Block You Like a Hurricane",null,null,null,null,null,null,null,null,null,"court 4"]
[null,null,null,8,null,null,null,null,null,null,null,"SARC- Notorious D.I.G."]
[null,null,21,"SARC- Notorious D.I.G.",null,null,null,null,null,null,null,"court 1"]
[null,null,null,"court 4"]
[null,null,null,null,2,"LKP- Pass It Around",null,null,null,null,null,null,null,null,null,null,null,null,31,null,"SO- Kiss My Ace"]
[null,null,null,null,null,9,null,null,null,"LKP- Pass It Around"]
[null,null,null,null,31,"SARC- Good Bumps, Nice Sets"]
[null,null,null,null,null,"court 2",null,null,null,21,null,null,null,"LKP- Pass It Around"]
[15,"SARC- Sets on the Beach"]
[null,10,null,null,null,null,null,null,null,"SARC- Sets on the Beach"]
[18,"GS- 50 Shades of Greystone",null,null,null,null,null,null,null,"court 2"]
[null,"court 3",null,null,null,null,null,null,null,null,null,null,null,27,null,null,"SO- Kiss My Ace"]
[null,null,null,null,null,null,7,"SO- Kiss My Ace"]
[null,null,null,null,null,null,null,11,null,null,null,"SO- Kiss My Ace"]
[null,null,null,null,null,null,26,"HG- Swingrays"]
[null,null,null,null,null,null,null,"court 3",null,null,null,22,null,"SO- Kiss My Ace"]
[null,null,10,"LKP- Will Play for Sets",null,null,null,null,null,null,null,null,null,"court 2"]
[null,null,null,12,null,null,null,null,null,null,null,"SARC- Unprotected Sets"]
[null,null,23,"SARC- Unprotected Sets",null,null,null,null,null,null,null,"court 3"]
[null,null,null,"court 2",null,null,null,null,null,null,null,null,null,null,null,null,30,null,"SO- Kiss My Ace"]
[null,null,null,null,3,"SARC- Volleywood"]
[null,null,null,null,null,13,null,null,null,"SARC- Volleywood",null,null,null,null,null,null,null,null,"court 1"]
[null,null,null,null,30,"SARC- Mizfits"]
[null,null,null,null,null,"court 3",null,null,null,23,null,null,null,"LKP- Bumpn' Uglies"]
[14,"NR- Six Pack Attack"]
[null,14,null,null,null,null,null,null,null,"LKP- Bumpn' Uglies"]
[19,"LKP- Bumpn' Uglies",null,null,null,null,null,null,null,"court 3"]
[null,"court 2",null,null,null,null,null,null,null,null,null,null,null,28,null,null,"LKP- Bumpn' Uglies"]
[null,null,null,null,null,null,6,"GS- Sand Gators",null,null,null,null,null,null,null,null,"court 2"]
[null,null,null,null,null,null,null,15,null,null,null,"GS- Sand Gators"]
[null,null,null,null,null,null,27,"CT- Volley Llamas"]
[null,null,null,null,null,null,null,"court 2",null,null,null,24,null,"GS- Sand Gators"]
[null,null,11,"SARC- Sand Diggers",null,null,null,null,null,null,null,null,null,"court 3"]
[null,null,null,16,null,null,null,null,null,null,null,"SARC- Sand Diggers"]
[null,null,22,"SARC- Dirt Devils",null,null,null,null,null,null,null,"court 2"]
[null,null,null,"court 3"]

{"sheet":"GPI Ranking-Seeding","index":5,"n_rows":36,"n_cols":24,"rows_kept":36,"cut":false,"hidden":false,"merged":[[0,4,0,6],[0,2,0,3],[0,7,0,9],[0,10,0,11],[1,7,1,8]]}
[2017,"Final SEEDING ","#1- Strength of Schedule",null,"#2- NUMBER OF WINS",null,null,"#3- POINT DIFFERENTIAL",null,null,"#4- MONEY FOR ST BALDRICKS",null,null,null,null,null,"Point Differential"]
[{"$f":"'Team SB Donations'!#REF!","v":{"$error":"#REF!"}},"Method for Determining Points >>>>>>>>>>>>>>>","Points","A= 8 pts,      B=5 pts,       C= 2 pts,      D= 0 pts",null,"Points","= # of Wins","Ranking",null,"=(32-Rank)/7","Ranking","=(32-Rank)/5","Total Pts from Wins, Pt Diff, Tier Diff, Money raised",null,null,null,null,"Division","Teams","Win","Loss",".","PT DIFF","Rank"]
[null,"Point Variance",null,8,null,null,11,null,null,4.4000000000000004,null,6,null,null,null,null,null,null,"LKP- Air Vectors",null,null,null,{"$f":"VLOOKUP(S3,'NIGHT THREE'!M$3:Q$34,5,FALSE)","v":105},1]
["Ranking","Teams","Team Level","Points for Division Difficulty","Win","Loss","Points from W/L","POINT DIFFERENTIAL","Pt Diff Rank","Points from Pt Diff ","Rank- Money Raised for St Baldricks or Sponsorship","POINTS for Money Raised for St Baldricks or Sponsorship","TOTAL POINTS",null,null,null,null,null,"SARC- $et for Life",null,null,null,{"$f":"VLOOKUP(S4,'NIGHT THREE'!M$3:Q$34,5,FALSE)","v":72},2]
[1,"LKP- Air Vectors","A",{"$f":"IF(C5=\"A\",8,IF(C5=\"B\",5,IF(C5=\"C\",2,0)))","v":8},{"$f":"VLOOKUP(B5,'NIGHT THREE'!M$3:N$34,2,FALSE)","v":11},{"$f":"VLOOKUP(B5,'NIGHT THREE'!M$3:O$34,3,FALSE)","v":0},{"$f":"E5","v":11},{"$f":"VLOOKUP(B5,'NIGHT THREE'!M$3:Q$34,5,FALSE)","v":105},{"$f":"VLOOKUP($B5,S$3:X$34,6,FALSE)","v":1},{"$f":"(32-I5)/7","v":4.4285714285714288},{"$f":"VLOOKUP($B5,'Team SB Donations'!B$5:L$36,11,FALSE)","v":16},{"$f":"(32-K5)/5","v":3.2},{"$f":"G5+J5+D5+L5","v":26.62857142857143},null,null,null,null,null,"CT- Spikological Warfare",null,null,null,{"$f":"VLOOKUP(S5,'NIGHT THREE'!M$3:Q$34,5,FALSE)","v":56},3]
[2,"LKP- Pass It Around","A",8,{"$f":"VLOOKUP(B6,'NIGHT THREE'!M$3:N$34,2,FALSE)","v":8},{"$f":"VLOOKUP(B6,'NIGHT THREE'!M$3:O$34,3,FALSE)","v":3},8,{"$f":"VLOOKUP(B6,'NIGHT THREE'!M$3:Q$34,5,FALSE)","v":44},8,3.4285714285714284,{"$f":"VLOOKUP($B6,'Team SB Donations'!B$5:L$36,11,FALSE)","v":13},3.8,23.228571428571431,null,null,null,null,null,"SARC- Volleywood",null,null,null,{"$f":"VLOOKUP(S6,'NIGHT THREE'!M$3:Q$34,5,FALSE)","v":56},4]
[3,"SARC- Volleywood","A",8,{"$f":"VLOOKUP(B7,'NIGHT THREE'!M$3:N$34,2,FALSE)","v":8},{"$f":"VLOOKUP(B7,'NIGHT THREE'!M$3:O$34,3,FALSE)","v":3},8,{"$f":"VLOOKUP(B7,'NIGHT THREE'!M$3:Q$34,5,FALSE)","v":56},4,4,{"$f":"VLOOKUP($B7,'Team SB Donations'!B$5:L$36,11,FALSE)","v":24},1.6,21.6,null,null,null,null,null,"SARC- Dirt Devils",null,null,null,{"$f":"VLOOKUP(S7,'NIGHT THREE'!M$3:Q$34,5,FALSE)","v":53},5]
[4,"GS- El Toro's Revenge","D",0,{"$f":"VLOOKUP(B8,'NIGHT THREE'!M$3:N$34,2,FALSE)","v":7},{"$f":"VLOOKUP(B8,'NIGHT THREE'!M$3:O$34,3,FALSE)","v":4},7,{"$f":"VLOOKUP(B8,'NIGHT THREE'!M$3:Q$34,5,FALSE)","v":40},10,3.1428571428571428,{"$f":"VLOOKUP($B8,'Team SB Donations'!B$5:L$36,11,FALSE)","v":1},6.2,16.342857142857142,"El TORO #4 seed",null,null,null,null,"SO- Team Kona",null,null,null,{"$f":"VLOOKUP(S8,'NIGHT THREE'!M$3:Q$34,5,FALSE)","v":52},6]
[5,"CT- Spikological Warfare","A",8,{"$f":"VLOOKUP(B9,'NIGHT THREE'!M$3:N$34,2,FALSE)","v":6},{"$f":"VLOOKUP(B9,'NIGHT THREE'!M$3:O$34,3,FALSE)","v":5},6,{"$f":"VLOOKUP(B9,'NIGHT THREE'!M$3:Q$34,5,FALSE)","v":56},3,4.1428571428571432,{"$f":"VLOOKUP($B9,'Team SB Donations'!B$5:L$36,11,FALSE)","v":15},3.4,21.542857142857141,null,null,null,null,null,"LKP- Block You Like a Hurricane",null,null,null,{"$f":"VLOOKUP(S9,'NIGHT THREE'!M$3:Q$34,5,FALSE)","v":45},7]
[6,"GS- Sand Gators","B",5,{"$f":"VLOOKUP(B10,'NIGHT THREE'!M$3:N$34,2,FALSE)","v":8},{"$f":"VLOOKUP(B10,'NIGHT THREE'!M$3:O$34,3,FALSE)","v":3},8,{"$f":"VLOOKUP(B10,'NIGHT THREE'!M$3:Q$34,5,FALSE)","v":42},9,3.2857142857142856,{"$f":"VLOOKUP($B10,'Team SB Donations'!B$5:L$36,11,FALSE)","v":6},5.2,21.485714285714284,null,null,null,null,null,"LKP- Pass It Around",null,null,null,{"$f":"VLOOKUP(S10,'NIGHT THREE'!M$3:Q$34,5,FALSE)","v":44},8]
[7,"SO- Kiss My Ace","A",8,{"$f":"VLOOKUP(B11,'NIGHT THREE'!M$3:N$34,2,FALSE)","v":5},{"$f":"VLOOKUP(B11,'NIGHT THREE'!M$3:O$34,3,FALSE)","v":6},5,{"$f":"VLOOKUP(B11,'NIGHT THREE'!M$3:Q$34,5,FALSE)","v":-10},20,1.7142857142857142,{"$f":"VLOOKUP($B11,'Team SB Donations'!B$5:L$36,11,FALSE)","v":4},5.6,20.314285714285717,null,null,null,null,null,"GS- Sand Gators",null,null,null,{"$f":"VLOOKUP(S11,'NIGHT THREE'!M$3:Q$34,5,FALSE)","v":42},9]
[8,"GS- Vicious & Delicious","B",5,{"$f":"VLOOKUP(B12,'NIGHT THREE'!M$3:N$34,2,FALSE)","v":6},{"$f":"VLOOKUP(B12,'NIGHT THREE'!M$3:O$34,3,FALSE)","v":5},6,{"$f":"VLOOKUP(B12,'NIGHT THREE'!M$3:Q$34,5,FALSE)","v":15},16,2.2857142857142856,{"$f":"VLOOKUP($B12,'Team SB Donations'!B$5:L$36,11,FALSE)","v":3},5.8,19.085714285714285,null,null,null,null,null,"GS- El Toro's Revenge",null,null,null,{"$f":"VLOOKUP(S12,'NIGHT THREE'!M$3:Q$34,5,FALSE)","v":40},10]
[9,"SARC- $et for Life","B",5,{"$f":"VLOOKUP(B13,'NIGHT THREE'!M$3:N$34,2,FALSE)","v":9},{"$f":"VLOOKUP(B13,'NIGHT THREE'!M$3:O$34,3,FALSE)","v":2},9,{"$f":"VLOOKUP(B13,'NIGHT THREE'!M$3:Q$34,5,FALSE)","v":72},2,4.2857142857142856,{"$f":"VLOOKUP($B13,'Team SB Donations'!B$5:L$36,11,FALSE)","v":29},0.6,18.885714285714286,null,null,null,null,null,"SARC- Sets on the Beach",null,null,null,{"$f":"VLOOKUP(S13,'NIGHT THREE'!M$3:Q$34,5,FALSE)","v":33},11]
[10,"LKP- Will Play for Sets","A",8,{"$f":"VLOOKUP(B14,'NIGHT THREE'!M$3:N$34,2,FALSE)","v":7},{"$f":"VLOOKUP(B14,'NIGHT THREE'!M$3:O$34,3,FALSE)","v":4},7,{"$f":"VLOOKUP(B14,'NIGHT THREE'!M$3:Q$34,5,FALSE)","v":26},12,2.8571428571428572,{"$f":"VLOOKUP($B14,'Team SB Donations'!B$5:L$36,11,FALSE)","v":27},1,18.857142857142858,null,null,null,null,null,"LKP- Will Play for Sets",null,null,null,{"$f":"VLOOKUP(S14,'NIGHT THREE'!M$3:Q$34,5,FALSE)","v":26},12]
[11,"SARC- Sand Diggers","B",5,{"$f":"VLOOKUP(B15,'NIGHT THREE'!M$3:N$34,2,FALSE)","v":5},{"$f":"VLOOKUP(B15,'NIGHT THREE'!M$3:O$34,3,FALSE)","v":6},5,{"$f":"VLOOKUP(B15,'NIGHT THREE'!M$3:Q$34,5,FALSE)","v":18},15,2.4285714285714284,{"$f":"VLOOKUP($B15,'Team SB Donations'!B$5:L$36,11,FALSE)","v":2},6,18.428571428571431,null,null,null,null,null,"LKP- Casual Sets",null,null,null,{"$f":"VLOOKUP(S15,'NIGHT THREE'!M$3:Q$34,5,FALSE)","v":21},13]
[12,"LKP- Block You Like a Hurricane","B",5,{"$f":"VLOOKUP(B16,'NIGHT THREE'!M$3:N$34,2,FALSE)","v":8},{"$f":"VLOOKUP(B16,'NIGHT THREE'!M$3:O$34,3,FALSE)","v":3},8,{"$f":"VLOOKUP(B16,'NIGHT THREE'!M$3:Q$34,5,FALSE)","v":45},7,3.5714285714285716,{"$f":"VLOOKUP($B16,'Team SB Donations'!B$5:L$36,11,FALSE)","v":26},1.2,17.771428571428569,null,null,null,null,null,"SARC- Here for Beer",null,null,null,{"$f":"VLOOKUP(S16,'NIGHT THREE'!M$3:Q$34,5,FALSE)","v":21},14]
[13,"SO- Team Kona","C",2,{"$f":"VLOOKUP(B17,'NIGHT THREE'!M$3:N$34,2,FALSE)","v":7},{"$f":"VLOOKUP(B17,'NIGHT THREE'!M$3:O$34,3,FALSE)","v":4},7,{"$f":"VLOOKUP(B17,'NIGHT THREE'!M$3:Q$34,5,FALSE)","v":52},6,3.7142857142857144,{"$f":"VLOOKUP($B17,'Team SB Donations'!B$5:L$36,11,FALSE)","v":9},4.5999999999999996,17.314285714285717,null,null,null,null,null,"SARC- Sand Diggers",null,null,null,{"$f":"VLOOKUP(S17,'NIGHT THREE'!M$3:Q$34,5,FALSE)","v":18},15]
[14,"NR- Six Pack Attack","A",8,{"$f":"VLOOKUP(B18,'NIGHT THREE'!M$3:N$34,2,FALSE)","v":5},{"$f":"VLOOKUP(B18,'NIGHT THREE'!M$3:O$34,3,FALSE)","v":6},5,{"$f":"VLOOKUP(B18,'NIGHT THREE'!M$3:Q$34,5,FALSE)","v":-15},22,1.4285714285714286,{"$f":"VLOOKUP($B18,'Team SB Donations'!B$5:L$36,11,FALSE)","v":21},2.2000000000000002,16.62857142857143,null,null,null,null,null,"GS- Vicious & Delicious",null,null,null,{"$f":"VLOOKUP(S18,'NIGHT THREE'!M$3:Q$34,5,FALSE)","v":15},16]
[15,"SARC- Sets on the Beach","C",2,{"$f":"VLOOKUP(B19,'NIGHT THREE'!M$3:N$34,2,FALSE)","v":7},{"$f":"VLOOKUP(B19,'NIGHT THREE'!M$3:O$34,3,FALSE)","v":4},7,{"$f":"VLOOKUP(B19,'NIGHT THREE'!M$3:Q$34,5,FALSE)","v":33},11,3,{"$f":"VLOOKUP($B19,'Team SB Donations'!B$5:L$36,11,FALSE)","v":12},4,16,null,null,null,null,null,"LKP- Bumpn' Uglies",null,null,null,{"$f":"VLOOKUP(S19,'NIGHT THREE'!M$3:Q$34,5,FALSE)","v":13},17]
[16,"LKP- Casual Sets","C",2,{"$f":"VLOOKUP(B20,'NIGHT THREE'!M$3:N$34,2,FALSE)","v":6},{"$f":"VLOOKUP(B20,'NIGHT THREE'!M$3:O$34,3,FALSE)","v":5},6,{"$f":"VLOOKUP(B20,'NIGHT THREE'!M$3:Q$34,5,FALSE)","v":21},13,2.7142857142857144,{"$f":"VLOOKUP($B20,'Team SB Donations'!B$5:L$36,11,FALSE)","v":17},3,13.714285714285715,null,null,null,null,null,"SARC- I'd Hit That",null,null,null,{"$f":"VLOOKUP(S20,'NIGHT THREE'!M$3:Q$34,5,FALSE)","v":7},18]
[17,"SARC- Here for Beer","D",0,{"$f":"VLOOKUP(B21,'NIGHT THREE'!M$3:N$34,2,FALSE)","v":6},{"$f":"VLOOKUP(B21,'NIGHT THREE'!M$3:O$34,3,FALSE)","v":5},6,{"$f":"VLOOKUP(B21,'NIGHT THREE'!M$3:Q$34,5,FALSE)","v":21},14,2.5714285714285716,{"$f":"VLOOKUP($B21,'Team SB Donations'!B$5:L$36,11,FALSE)","v":7},5,13.571428571428571,null,null,null,null,null,"GS- 50 Shades of Greystone",null,null,null,{"$f":"VLOOKUP(S21,'NIGHT THREE'!M$3:Q$34,5,FALSE)","v":0},19]
[18,"GS- 50 Shades of Greystone","C",2,{"$f":"VLOOKUP(B22,'NIGHT THREE'!M$3:N$34,2,FALSE)","v":7},{"$f":"VLOOKUP(B22,'NIGHT THREE'!M$3:O$34,3,FALSE)","v":4},7,{"$f":"VLOOKUP(B22,'NIGHT THREE'!M$3:Q$34,5,FALSE)","v":0},19,1.8571428571428572,{"$f":"VLOOKUP($B22,'Team SB Donations'!B$5:L$36,11,FALSE)","v":19},2.6,13.457142857142857,null,null,null,null,null,"SO- Kiss My Ace",null,null,null,{"$f":"VLOOKUP(S22,'NIGHT THREE'!M$3:Q$34,5,FALSE)","v":-10},20]
[19,"LKP- Bumpn' Uglies","B",5,{"$f":"VLOOKUP(B23,'NIGHT THREE'!M$3:N$34,2,FALSE)","v":6},{"$f":"VLOOKUP(B23,'NIGHT THREE'!M$3:O$34,3,FALSE)","v":5},6,{"$f":"VLOOKUP(B23,'NIGHT THREE'!M$3:Q$34,5,FALSE)","v":13},17,2.1428571428571428,{"$f":"VLOOKUP($B23,'Team SB Donations'!B$5:L$36,11,FALSE)","v":31},0.2,13.342857142857142,null,null,null,null,null,"HG- Swingrays",null,null,null,{"$f":"VLOOKUP(S23,'NIGHT THREE'!M$3:Q$34,5,FALSE)","v":-13},21]
[20,"NR- Hit That Thang","A",8,{"$f":"VLOOKUP(B24,'NIGHT THREE'!M$3:N$34,2,FALSE)","v":3},{"$f":"VLOOKUP(B24,'NIGHT THREE'!M$3:O$34,3,FALSE)","v":8},3,{"$f":"VLOOKUP(B24,'NIGHT THREE'!M$3:Q$34,5,FALSE)","v":-68},27,0.7142857142857143,{"$f":"VLOOKUP($B24,'Team SB Donations'!B$5:L$36,11,FALSE)","v":25},1.4,13.114285714285716,null,null,null,null,null,"NR- Six Pack Attack",null,null,null,{"$f":"VLOOKUP(S24,'NIGHT THREE'!M$3:Q$34,5,FALSE)","v":-15},22]
[21,"SARC- Notorious D.I.G.","B",5,{"$f":"VLOOKUP(B25,'NIGHT THREE'!M$3:N$34,2,FALSE)","v":3},{"$f":"VLOOKUP(B25,'NIGHT THREE'!M$3:O$34,3,FALSE)","v":8},3,{"$f":"VLOOKUP(B25,'NIGHT THREE'!M$3:Q$34,5,FALSE)","v":-56},26,0.8571428571428571,{"$f":"VLOOKUP($B25,'Team SB Donations'!B$5:L$36,11,FALSE)","v":11},4.2,13.057142857142857,null,null,null,null,null,"SARC- Mojo Risin ",null,null,null,{"$f":"VLOOKUP(S25,'NIGHT THREE'!M$3:Q$34,5,FALSE)","v":-21},23]
[22,"SARC- Dirt Devils","D",0,{"$f":"VLOOKUP(B26,'NIGHT THREE'!M$3:N$34,2,FALSE)","v":7},{"$f":"VLOOKUP(B26,'NIGHT THREE'!M$3:O$34,3,FALSE)","v":4},7,{"$f":"VLOOKUP(B26,'NIGHT THREE'!M$3:Q$34,5,FALSE)","v":53},5,3.8571428571428572,{"$f":"VLOOKUP($B26,'Team SB Donations'!B$5:L$36,11,FALSE)","v":22},2,12.857142857142858,null,null,null,null,null,"CT- Concrete Feet",null,null,null,{"$f":"VLOOKUP(S26,'NIGHT THREE'!M$3:Q$34,5,FALSE)","v":-39},24]
[23,"SARC- Unprotected Sets","B",5,{"$f":"VLOOKUP(B27,'NIGHT THREE'!M$3:N$34,2,FALSE)","v":3},{"$f":"VLOOKUP(B27,'NIGHT THREE'!M$3:O$34,3,FALSE)","v":8},3,{"$f":"VLOOKUP(B27,'NIGHT THREE'!M$3:Q$34,5,FALSE)","v":-71},28,0.5714285714285714,{"$f":"VLOOKUP($B27,'Team SB Donations'!B$5:L$36,11,FALSE)","v":18},2.8,11.37142857142857,null,null,null,null,null,"SARC- Raleigh Brawl",null,null,null,{"$f":"VLOOKUP(S27,'NIGHT THREE'!M$3:Q$34,5,FALSE)","v":-44},25]
[24,"SARC- Mojo Risin ","D",0,{"$f":"VLOOKUP(B28,'NIGHT THREE'!M$3:N$34,2,FALSE)","v":5},{"$f":"VLOOKUP(B28,'NIGHT THREE'!M$3:O$34,3,FALSE)","v":6},5,{"$f":"VLOOKUP(B28,'NIGHT THREE'!M$3:Q$34,5,FALSE)","v":-21},23,1.2857142857142858,{"$f":"VLOOKUP($B28,'Team SB Donations'!B$5:L$36,11,FALSE)","v":8},4.8,11.085714285714285,null,null,null,null,null,"SARC- Notorious D.I.G.",null,null,null,{"$f":"VLOOKUP(S28,'NIGHT THREE'!M$3:Q$34,5,FALSE)","v":-56},26]
[25,"SARC- I'd Hit That","C",2,{"$f":"VLOOKUP(B29,'NIGHT THREE'!M$3:N$34,2,FALSE)","v":6},{"$f":"VLOOKUP(B29,'NIGHT THREE'!M$3:O$34,3,FALSE)","v":5},6,{"$f":"VLOOKUP(B29,'NIGHT THREE'!M$3:Q$34,5,FALSE)","v":7},18,2,{"$f":"VLOOKUP($B29,'Team SB Donations'!B$5:L$36,11,FALSE)","v":32},0,10,null,null,null,null,null,"NR- Hit That Thang",null,null,null,{"$f":"VLOOKUP(S29,'NIGHT THREE'!M$3:Q$34,5,FALSE)","v":-68},27]
[26,"HG- Swingrays","C",2,{"$f":"VLOOKUP(B30,'NIGHT THREE'!M$3:N$34,2,FALSE)","v":5},{"$f":"VLOOKUP(B30,'NIGHT THREE'!M$3:O$34,3,FALSE)","v":6},5,{"$f":"VLOOKUP(B30,'NIGHT THREE'!M$3:Q$34,5,FALSE)","v":-13},21,1.5714285714285714,{"$f":"VLOOKUP($B30,'Team SB Donations'!B$5:L$36,11,FALSE)","v":28},0.8,9.3714285714285719,null,null,null,null,null,"SARC- Unprotected Sets",null,null,null,{"$f":"VLOOKUP(S30,'NIGHT THREE'!M$3:Q$34,5,FALSE)","v":-71},28]
[27,"CT- Volley Llamas","C",2,{"$f":"VLOOKUP(B31,'NIGHT THREE'!M$3:N$34,2,FALSE)","v":1},{"$f":"VLOOKUP(B31,'NIGHT THREE'!M$3:O$34,3,FALSE)","v":10},1,{"$f":"VLOOKUP(B31,'NIGHT THREE'!M$3:Q$34,5,FALSE)","v":-87},30,0.2857142857142857,{"$f":"VLOOKUP($B31,'Team SB Donations'!B$5:L$36,11,FALSE)","v":10},4.4000000000000004,7.6857142857142859,null,null,null,null,null,"SARC- Good Bumps, Nice Sets",null,null,null,{"$f":"VLOOKUP(S31,'NIGHT THREE'!M$3:Q$34,5,FALSE)","v":-84},29]
[28,"SARC- Raleigh Brawl","D",0,{"$f":"VLOOKUP(B32,'NIGHT THREE'!M$3:N$34,2,FALSE)","v":4},{"$f":"VLOOKUP(B32,'NIGHT THREE'!M$3:O$34,3,FALSE)","v":7},4,{"$f":"VLOOKUP(B32,'NIGHT THREE'!M$3:Q$34,5,FALSE)","v":-44},25,1,{"$f":"VLOOKUP($B32,'Team SB Donations'!B$5:L$36,11,FALSE)","v":20},2.4,7.4,null,null,null,null,null,"CT- Volley Llamas",null,null,null,{"$f":"VLOOKUP(S32,'NIGHT THREE'!M$3:Q$34,5,FALSE)","v":-87},30]
[29,"CT- Concrete Feet","D",0,{"$f":"VLOOKUP(B33,'NIGHT THREE'!M$3:N$34,2,FALSE)","v":5},{"$f":"VLOOKUP(B33,'NIGHT THREE'!M$3:O$34,3,FALSE)","v":6},5,{"$f":"VLOOKUP(B33,'NIGHT THREE'!M$3:Q$34,5,FALSE)","v":-39},24,1.1428571428571428,{"$f":"VLOOKUP($B33,'Team SB Donations'!B$5:L$36,11,FALSE)","v":30},0.4,6.5428571428571427,null,null,null,null,null,"GS- Rhymes with Stupid",null,null,null,{"$f":"VLOOKUP(S33,'NIGHT THREE'!M$3:Q$34,5,FALSE)","v":-101},31]
[30,"SARC- Mizfits","D",0,{"$f":"VLOOKUP(B34,'NIGHT THREE'!M$3:N$34,2,FALSE)","v":1},{"$f":"VLOOKUP(B34,'NIGHT THREE'!M$3:O$34,3,FALSE)","v":10},1,{"$f":"VLOOKUP(B34,'NIGHT THREE'!M$3:Q$34,5,FALSE)","v":-110},32,0,{"$f":"VLOOKUP($B34,'Team SB Donations'!B$5:L$36,11,FALSE)","v":5},5.4,6.4,null,null,null,null,null,"SARC- Mizfits",null,null,null,{"$f":"VLOOKUP(S34,'NIGHT THREE'!M$3:Q$34,5,FALSE)","v":-110},32]
[31,"SARC- Good Bumps, Nice Sets","C",2,{"$f":"VLOOKUP(B35,'NIGHT THREE'!M$3:N$34,2,FALSE)","v":0},{"$f":"VLOOKUP(B35,'NIGHT THREE'!M$3:O$34,3,FALSE)","v":11},0,{"$f":"VLOOKUP(B35,'NIGHT THREE'!M$3:Q$34,5,FALSE)","v":-84},29,0.42857142857142855,{"$f":"VLOOKUP($B35,'Team SB Donations'!B$5:L$36,11,FALSE)","v":14},3.6,6.0285714285714285]
[32,"GS- Rhymes with Stupid","D",0,{"$f":"VLOOKUP(B36,'NIGHT THREE'!M$3:N$34,2,FALSE)","v":1},{"$f":"VLOOKUP(B36,'NIGHT THREE'!M$3:O$34,3,FALSE)","v":10},1,{"$f":"VLOOKUP(B36,'NIGHT THREE'!M$3:Q$34,5,FALSE)","v":-101},31,0.14285714285714285,{"$f":"VLOOKUP($B36,'Team SB Donations'!B$5:L$36,11,FALSE)","v":23},1.8,2.9428571428571431]

{"sheet":"Team SB Donations","index":6,"n_rows":36,"n_cols":20,"rows_kept":36,"cut":false,"hidden":false,"merged":[]}
[null,null,null,null,null,null,null,null,null,null,null,null,null,"St Baldrick's Download Team Report"]
[null,null,null,null,null,null,null,null,null,null,null,null,null,2018]
[null,1,2,3,4,5,6,7,8,9,10,11,null,"SB report downloaded 8/19 6pm"]
[null,"Schedule Name","SB- Team Name","# of Participants","Team Captain Full Name",null,null,"Amount Raised on SB Site","Sponsorships Cash earned- Adjustments","Cash Sponsors acquired (checks to SARC), other SB credits, or Adjustments ","Total- Team Earnings","Growler SB Team Rank",null,"Registration Date","Team Name","# of Participants","Team Captain Full Name","Team Captain Display Name","Team Fundraising Goal","Amount Raised"]
[null,"GS- El Toro's Revenge","El toro",null,"Joe  Cockerham",null,null,{"$f":"VLOOKUP(C5,O$5:T$36,6,FALSE)","v":18970.009999999998},-7762,"Apply 50 % of El Toro to V & D (Lindsay/Brooke)",{"$f":"SUM(H5:I5)","v":11208.009999999998},1,null,"2018-05-08","Air Vectors",4,"Lawrence R Lee","Lawrence Lee",300,925]
[null,"SARC- Sand Diggers","Sand Diggers",null,"John M Marks",null,null,6849,3350,"Alvis Dent $250 , Wells Dent $500, RabonDaily $250,  D Jacobs-lights 1600, Campbell 750",10199,2,null,"2018-05-10","Bump'n Uglies",1,"Kenneth  Muller","Kenneth Muller",1000,500]
[null,"GS- Vicious & Delicious","Vicious and Delicious",null,"Michael D Braga",null,null,300,8762,"Apply 50 % of El Toro to V & D (Lindsay/Brooke), SouthernResearch $1000 check sent to SB",9062,3,null,"2018-05-10","Hit That Thang",2,"Steve  Hamilton","Steve Hamilton",1000,735]
[null,"SO- Kiss My Ace","Kiss My Ace!",null,"Olaf  Schroeder",null,null,5805,null,null,5805,4,null,"2018-05-10","El toro",6,"Joe  Cockerham","Joe Cockerham",500,18970.009999999998]
[null,"SARC- Mizfits","Mizfits",null,"Jay W Cupstid",null,null,2478,2350,"BTM Landscape (350),  Alvis Dent 250, Cornerstone $1500,  SMVT 250 ",4828,5,null,"2018-05-10","Raleigh Brawl",1,"Rob S Caulfield","Rob Caulfield",500,0]
[null,"GS- Sand Gators","Sand Gators",null,"Jeff  Sharp",null,null,2090,1200,"NC Sp Hosp ($250), Northstate (S200), Courtyard ($250). One Off clothing ($500)",3290,6,null,"2018-05-11","Casual Sets",1,"Dave  Radcliffe","Dave Radcliffe",500,100]
[null,"SARC- Here for Beer","Here for Beer",null,"Bill  Green",null,null,2601,500,"250 Edge, 250 Greentech",3101,7,null,"2018-05-14","Team Kona",4,"J  maierhofer","Joe Maierhofer",2500,1666]
[null,"SARC- Mojo Risin ","Mojo Risin'",null,"Beth  Munoz",null,null,3091,null,null,3091,8,null,"2018-05-15","Sand Gators",1,"Jeffrey  Sharp","Jeffrey Sharp",1000,2090]
[null,"SO- Team Kona","Team Kona",null,"Joe  Maierhofer",null,null,1666,500,"SB check from fund raiser",2166,9,null,"2018-05-17","Vicious and Delicious",1,"Jeff  Owens","Jeff Owens",400,300]
[null,"CT- Volley Llamas","Volley Llamas",null,"Eric  Yount",null,null,2020,null,null,2020,10,null,"2018-05-20","Mojo Risin'",6,"Ray  Gonzalez","Ray Gonzalez",3000,3091]
[null,"SARC- Notorious D.I.G.","Notorious D.I.G.",null,"Matt  Vaughn",null,null,200,1750,"Bedlam (1500), SMVT 250",1950,11,null,"2018-05-21","Block You Like a Hurricane",5,"James  Perotti","James Perotti",700,850]
[null,"SARC- Sets on the Beach","Sets on the Beach",null,"Jennifer H Daft",null,null,1930,null," ",1930,12,null,"2018-05-21","Good Bumps, Nice Sets",2,"Haleigh  McCollum","Haleigh McCollum",1500,725]
[null,"LKP- Pass It Around","Pass it Around",null,"Gregg  Klofenstine",null,null,1795,null," ",1795,13,null,"2018-05-21","$et For Life",1,"Dan J Schaefer","Dan Schaefer",500,630]
[null,"SARC- Good Bumps, Nice Sets","Good Bumps, Nice Sets",null,"Haleigh  McCollum",null,null,725,1050,"Nutri Lawn ($250) , H&E Equip ($800)",1775,14,null,"2018-05-21","Volleywood",7,"Jason P Grieco","Jason Grieco",2000,1125]
[null,"CT- Spikological Warfare","Spikological Warfare",null,"Burt  Driscoll",null,null,1740,null,null,1740,15,null,"2018-05-22","50 Shades of Greystone",3,"Marshall A Lamb","50 Shades of Greystone",500,1370]
[null,"LKP- Air Vectors","Air vectors",null,"Lawrence R Lee",null,null,925,764.94,"Bradsher",1689.94,16,null,"2018-05-22","Pass It Around",4,"Gregg  Klofenstine","Gregg Klofenstine",100,1795]
[null,"LKP- Casual Sets","Casual Sets",null,"Dave  Radcliffe",null,null,100,1500,"Fidelity",1600,17,null,"2018-05-25","Swingrays",1,"Glenn  Lucas","Glenn Lucas",1000,1050]
[null,"SARC- Unprotected Sets","Unprotected Sets",null,"Ryan D Oxendine",null,null,0,1500,"Oxendine-Barnes attorneys",1500,18,null,"2018-05-27","Mizfits",3,"Jay W Cupstid","Jay Cupstid",2000,2478]
[null,"GS- 50 Shades of Greystone","50 Shades of Greystone",null,"Marshall A Lamb",null,null,1370,null,null,1370,19,null,"2018-05-29","Here for Beer",6,"Alden P Blake","Alden Blake",1500,2601]
[null,"SARC- Raleigh Brawl","Raleigh Brawl",null,"Rob S Caulfield",null,null,0,1250,"All about Aesthetics, Wise donation",1250,20,null,"2018-05-29","Sets on the Beach",8,"Jennifer H Daft","Jennifer Daft",300,1930]
[null,"NR- Six Pack Attack","Six Pack Attack",null,"Robby A White",null,null,800,387.2,"Frito Lay",1187.2,21,null,"2018-05-29","Sand Diggers",5,"John M Marks","John Marks",5000,6849]
[null,"SARC- Dirt Devils","Dirt Devils",null,"Beth  Farrell",null,null,70,1100,"Campbell Ortho 750,  Alvis Dent 250, Trimat 100",1170,22,null,"2018-05-30","Dirt Devils",1,"Beth  Farrell","Beth Farrell",1500,70]
[null,"GS- Rhymes with Stupid","Rhymes With Stupid",null,"Greg  Wait",null,null,1170,null,null,1170,23,null,"2018-05-31","Kiss My Ace!",3,"Olaf  Schroeder","Olaf Schroeder",300,5805]
[null,"SARC- Volleywood","Volleywood",null,"Jason P Grieco",null,null,1125,null,null,1125,24,null,"2018-05-31","Spikological Warfare",5,"Daniel  Dulaney","Daniel Dulaney",300,1740]
[null,"NR- Hit That Thang","Hit That Thang",null,"Stephen  Hamilton",null,null,735,387.2,"Frito Lay",1122.2,25,null,"2018-05-31","Notorious D.I.G.",5,"Matt  Vaughn","Matt Vaughn",500,200]
[null,"LKP- Block You Like a Hurricane","Block You Like A Hurricane",null,"James  Perotti",null,null,850,250,"Stew-Absolute Clean",1100,26,null,"2018-05-31","Rhymes With Stupid",7,"Greg  Wait","Greg Wait",1200,1170]
[null,"LKP- Will Play for Sets","Will Play For Sets",null,"John D Allen",null,null,100,1000,"funds in route to SB via Bright funds/Cisco",1100,27,null,"2018-05-31","Six Pack Attack",5,"Robby A White","Robby White",800,800]
[null,"HG- Swingrays","Swingrays",null,"Glenn  Lucas",null,null,1050,null,null,1050,28,null,"2018-06-01","Will Play For Sets",3,"John D Allen","John Allen",500,100]
[null,"SARC- $et for Life","$et For Life",null,"Dan J Schaefer",null,null,630,250,"Lexus- 250",880,29,null,"2018-06-01","Concrete Feet - Crabtree Swim Club",3,"Chad W Collins","Chad Collins",1000,780]
[null,"CT- Concrete Feet","Concrete Feet - Crabtree Swim Club",null,"John J Willey",null,null,780,null,null,780,30,null,"2018-06-02","I'd Hit That",2,"Holly C Mabe","Holly Mabe",1000,200]
[null,"LKP- Bumpn' Uglies","Bump'n Uglies",null,"Kenneth  Muller",null,null,500,250,"PRM Filtration",750,31,null,"2018-06-11","Unprotected Sets",1,"Ryan D Oxendine","Ryan Oxendine",1000,0]
[null,"SARC- I'd Hit That","I'd Hit That",null,"Holly C Mabe",null,null,200,null,null,200,32,null,"2018-07-10","Volley Llamas",6,"Andrew J Mueller","Andrew Mueller",1000,2020]

{"sheet":"Teams","index":7,"n_rows":64,"n_cols":25,"rows_kept":64,"cut":false,"hidden":false,"merged":[]}
[]
[]
[]
[]
[]
[]
[]
[]
[]
[]
[]
[]
[]
[]
["2018 TEAMS"]
[]
["# of Teams","Teams per club","Captain","Club",null,"Team","Division","Team #","Full Name",null,null,"Team #s",null,null,null,null,null,null,null,null,null,null,"2018 Division Shifts","Division","2018 Teams"]
[1,1,"Jay Cupstid","Springdale","SARC","Mizfits",null,25,{"$f":"E18& \"- \" & F18","v":"SARC- Mizfits"},null,"Bracket",null,null,null,null,"Bracket",null,null,null,null,null,"Teams",null,"A","LKP- Will Play for Sets"]
[2,2,"Jason Grieco","Springdale","SARC","Volleywood",null,2,{"$f":"E19& \"- \" & F19","v":"SARC- Volleywood"},null,"A1",1,2,3,4,"A2",5,6,7,8,null,"LKP- Will Play for Sets",null,"A","LKP- Pass It Around"]
[3,3,"Jennifer Daft","Springdale","SARC","Sets on the Beach",null,12,"SARC- Sets on the Beach",null,"C1",9,10,11,12,"C2",13,14,15,16,null,"LKP- Pass It Around",null,"A","CT- Spikological Warfare"]
[4,4,"John Marks","Springdale","SARC","Sand Diggers",null,17,"SARC- Sand Diggers",null,"B1",17,18,19,20,"B2",21,22,23,24,null,"CT- Spikological Warfare",null,"A","NR- Hit That Thang"]
[5,5,"Shawn Mabe","Springdale","SARC","I'd Hit That",null,9,"SARC- I'd Hit That",null,"D1",25,26,27,28,"D2",29,30,31,32,null,"LKP- Bumpn' Uglies",null,"A","NR- Six Pack Attack"]
[6,6,"Rob Caulfield","Springdale","SARC","Raleigh Brawl",null,26,"SARC- Raleigh Brawl",null,null,null,null,null,null,null,null,null,null,null,null,"NR- Six Pack Attack",null,"A","SARC- Volleywood"]
[7,7,"Beth/Bruce Farell","Springdale","SARC","Dirt Devils",null,27,"SARC- Dirt Devils","2018 Bracket Slots",null,"2018 Brackets",null,null,null,null,null,null,null,null,null,"SARC- Volleywood",null,"A","SO- Kiss My Ace"]
[8,8,"Haleigh McCollum","Springdale","SARC","Good Bumps, Nice Sets",null,11,"SARC- Good Bumps, Nice Sets",null,"Bracket",null,null,null,null,"Bracket",null,null,null,null,null,"SO- Kiss My Ace",null,"A","LKP- Air Vectors"]
[9,9,"AP Blake","Springdale","SARC","Here for Beer",null,28,"SARC- Here for Beer",null,null,"SARC - Week 3","SARC - Week 3","SARC - Week 3","SARC - Week 3",null,"LKP - Week 3","LKP - Week 3","GS - Week 3","GS - Week 3",null,"LKP- Air Vectors",null,"B","SARC- $et for Life"]
[10,10,"Ray Gonzalez","Springdale","SARC","Mojo Risin ",null,29,"SARC- Mojo Risin ","LKP - A Div teams week 2","A1","NR- Six Pack Attack","SARC- Volleywood","LKP- Air Vectors","CT- Spikological Warfare","A2","LKP- Pass It Around","NR- Hit That Thang","LKP- Will Play for Sets","SO- Kiss My Ace","A TEAMS","SARC- $et for Life",null,"B","SARC- Sand Diggers"]
[11,11,"Matt Vaughan","Springdale","SARC","Notorious D.I.G.",null,20,"SARC- Notorious D.I.G.","GS- C Div teams week 2","C1","SARC- I'd Hit That","SO- Team Kona","SARC- Good Bumps, Nice Sets","SARC- Sets on the Beach","C2","LKP- Casual Sets","CT- Volley Llamas","HG- Swingrays","GS- 50 Shades of Greystone","C Teams","SARC- Sand Diggers",null,"B","LKP- Bumpn' Uglies"]
[12,12,"Ryan Oxendine","Springdale","SARC","Unprotected Sets",null,19,"SARC- Unprotected Sets","SARC - B Div teams week 2","B1","SARC- Sand Diggers","SARC- $et for Life","SARC- Unprotected Sets","SARC- Notorious D.I.G.","B2","LKP- Bumpn' Uglies","LKP- Block You Like a Hurricane","GS- Sand Gators","GS- Vicious & Delicious","B TEAMS","SARC- I'd Hit That",null,"B","SARC- Unprotected Sets"]
[13,13,"Dan Schaefer","Springdale","SARC","$et for Life",null,18,"SARC- $et for Life","SARC - D Div teams week 2","D1","SARC- Mizfits","SARC- Raleigh Brawl","SARC- Dirt Devils","SARC- Here for Beer","D2","SARC- Mojo Risin ","CT- Concrete Feet","GS- Rhymes with Stupid","GS- El Toro's Revenge","D Teams","LKP- Casual Sets",null,"B","SARC- Notorious D.I.G."]
[14,1,"Greg Klofenstine","Lakepark","LKP","Pass It Around",null,5,"LKP- Pass It Around",null,null,null,null,null,null,null,null,null,null,null,null,"SARC- Notorious D.I.G.",null,"B","GS- Vicious & Delicious"]
[15,2,"John Allen","Lakepark","LKP","Will Play for Sets",null,7,"LKP- Will Play for Sets",null,null,null,null,null,null,null,null,null,null,null,null,"GS- Vicious & Delicious",null,"B","LKP- Block You Like a Hurricane"]
[16,3,"Ken Muller","Lakepark","LKP","Bumpn' Uglies",null,21,"LKP- Bumpn' Uglies","\"A\" Division Teams",null,null,null,null,null,null,null,null,null,null,null,"LKP- Block You Like a Hurricane",null,"B","GS- Sand Gators"]
[17,4,"Dave Radcliffe","Lakepark","LKP","Casual Sets",null,13,"LKP- Casual Sets","\"B\" Division Teams",null,null,null,null,null,null,null,null,null,null,null,"GS- Sand Gators",null,"C","SARC- I'd Hit That"]
[18,5,"Lawerance Lee","Lakepark","LKP","Air Vectors",null,3,"LKP- Air Vectors","\"C\"  Division Teams",null,null,null,null,null,null,null,null,null,null,null,"SARC- Raleigh Brawl",null,"C","LKP- Casual Sets"]
[19,6,"Jim Perotti","Lakepark","LKP","Block You Like a Hurricane",null,22,"LKP- Block You Like a Hurricane","\"D\"  Division Teams",null,null,null,null,null,null,null,null,null,null,null,"NR- Hit That Thang",null,"C","GS- 50 Shades of Greystone"]
[20,1,"Vinnie Smith","Seven Oaks","SO","Kiss My Ace",null,8,"SO- Kiss My Ace",null,null,null,null,null,null,null,null,null,null,null,null,"GS- 50 Shades of Greystone",null,"C","SARC- Good Bumps, Nice Sets"]
[21,2,"Brian Tobey","Seven Oaks","SO","Team Kona",null,10,"SO- Team Kona","2017 Bracket Slots",null,"2017 Brackets",null,null,null,null,null,null,null,null,null,"SARC- Good Bumps, Nice Sets",null,"C","HG- Swingrays"]
[22,1,"Chad Collins","Crabtree","CT","Concrete Feet",null,30,"CT- Concrete Feet",null,"Bracket",null,null,null,null,"Bracket",null,null,null,null,null,"HG- Swingrays",null,"C","CT- Volley Llamas"]
[22,1,"Daniel Dulaney","Crabtree","CT","Spikological Warfare",null,4,{"$f":"E40& \"- \" & F40","v":"CT- Spikological Warfare"},null,null,"SARC - Week 3","SARC - Week 3","SARC - Week 3","SARC - Week 3",null,"LKP - Week 3","LKP - Week 3","GS - Week 3","GS - Week 3",null,"CT- Concrete Feet",null,"C","SO- Team Kona"]
[24,3,"An(Drew) Mueller","Crabtree","CT","Volley Llamas",null,14,{"$f":"E41& \"- \" & F41","v":"CT- Volley Llamas"},"LKP - A Div teams week 2","A1","SARC- Volleywood","LKP- Bumpn' Uglies","SO- Kiss My Ace","LKP- Air Vectors","A2","LKP- Will Play for Sets","NR- Six Pack Attack","LKP- Pass It Around","CT- Spikological Warfare","A TEAMS","SARC- Unprotected Sets",null,"C","SARC- Sets on the Beach"]
[25,1,"Marshall Lamb","Greystone","GS","50 Shades of Greystone",null,16,"GS- 50 Shades of Greystone","GS- C Div teams week 2","C1","SARC- Good Bumps, Nice Sets","SARC- Raleigh Brawl","SARC- Unprotected Sets","CT- Concrete Feet","C2","NR- Hit That Thang","HG- Swingrays","GS- 50 Shades of Greystone","GS- El Toro's Revenge","C Teams","GS- El Toro's Revenge",null,"D","SARC- Raleigh Brawl"]
[26,2,"Joe Cockerham","Greystone","GS","El Toro's Revenge",null,32,"GS- El Toro's Revenge","SARC - B Div teams week 2","B1","SARC- Notorious D.I.G.","GS- Sand Gators","SARC- Sand Diggers","SARC- I'd Hit That","B2","LKP- Casual Sets","LKP- Block You Like a Hurricane","SARC- $et for Life","GS- Vicious & Delicious","B TEAMS","CT- Volley Llamas",null,"D","CT- Concrete Feet"]
[27,3,"Greg Wait","Greystone","GS","Rhymes with Stupid",null,31,"GS- Rhymes with Stupid","SARC - D Div teams week 2","D1","SARC- Mizfits","SARC- Mojo Risin ","SARC- Here for Beer","SARC- Sets on the Beach","D2","SO- Team Kona","GS- Rhymes with Stupid","SARC- Dirt Devils","CT- Volley Llamas","D Teams","SO- Team Kona",null,"D","GS- Rhymes with Stupid"]
[28,4,"Jeff Owens","Greystone","GS","Vicious & Delicious",null,24,"GS- Vicious & Delicious",null,null,null,null,null,null,null,null,null,null,null,null,"GS- Rhymes with Stupid",null,"D","GS- El Toro's Revenge"]
[29,5,"Jeff Sharp","Greystone","GS","Sand Gators",null,23,"GS- Sand Gators",null,null,null,null,null,null,null,null,null,null,null,null,"SARC- Sets on the Beach",null,"D","SARC- Mizfits"]
[30,1,"Jim White","North Raleigh","NR","Six Pack Attack",null,1,"NR- Six Pack Attack",null,null,null,null,null,null,null,null,null,null,null,null,"SARC- Mizfits",null,"D","SARC- Here for Beer"]
[31,2,"Steve Hamilton","North Raleigh","NR","Hit That Thang",null,6,"NR- Hit That Thang",null,null,null,null,null,null,null,null,null,null,null,null,"SARC- Here for Beer",null,"D","SARC- Mojo Risin "]
[32,1,"Glen Lucas","Harrington Grove","HG","Swingrays",null,15,"HG- Swingrays","2016 Bracket Slots",null,"2016 Brackets",null,null,null,null,null,null,null,null,null,"SARC- Mojo Risin ",null,"D","SARC- Dirt Devils"]
[null,null,null,null,null,null,null,null,null,null,"Bracket",null,null,null,null,"Bracket",null,null,null,null,null,"SARC- Dirt Devils"]
[null,null,null,null,null,null,null,null,null,null,null,"SARC - Week 3","SARC - Week 3","SARC - Week 3","SARC - Week 3",null,"LKP - Week 3","LKP - Week 3","GS - Week 3","GS - Week 3"]
[null,null,null,null,null,null,null,null,null,"LKP - A Div teams week 2","A1","LPK-Air Vectors","SARC- $et for Life","CT - Spikological Warfare","SARC- Volleywood","A2","LPK- Pass it Around","LPK-WILL Play for Sets","NR- Six Pack Attack","SO- Kiss My Ace"]
[null,null,null,null,null,null,null,null,null,"GS- C Div teams week 2","C1","SARC- Good Bumps","SO- Team Kona","CT- Volley Llamas","CT Concrete Feet","C2","LKP- Block You Like a Hurricane","HG- Swingrays","GS- Sand Gators","GS- Setual Healing"]
[null,null,null,null,null,null,null,null,null,"SARC - B Div teams week 2","B1","SARC- Raleigh Brawl","SARC- Sand Diggers","SARC -I'd Hit That","SARC-Notorious DIG","B2","LPK-Casual Sets","LKP- Bumpn' Uglies","NR- Hit That Thang"," GS-50 Shades of Greystone"]
[null,null,null,null,null,null,null,null,null,"SARC - D Div teams week 2","D1","SARC Unprotected Sets","SARC- Mizfits","SARC- Here for Beer","SARC- Dirt Devils","D2","SARC- Sets on the Beach","SARC- Mojo Risin","GS- El Toro's Revenge","GS- Rhymes with Stupid"]
[]
[]
[]
[null,null,null,null,null,null,null,null,null,"2015 Bracket Slots"]
[null,null,null,null,null,null,null,null,null,null,null,"SARC - Week 3","SARC - Week 3","SARC - Week 3","SARC - Week 3",null,"LKP - Week 3","LKP - Week 3","GS - Week 3","GS - Week 3"]
[null,null,null,null,null,null,null,null,null,"LKP - A Div teams week 2","A1","SO- Kiss My Ace","LPK-Air Vectors","SARC- Volleywood","LPK- Pass it Around","A2","LPK-Casual Sets","NR- Six Pack Attack","LPK-WILL Play for Sets"," GS-50 Shades of Greystone A","A TEAMS"]
[null,null,null,null,null,null,null,null,null,"GS- C Div teams week 2","C1","SARC- $et for Life","SARC- Dirt Devils","SARC- Mojo Risin","SARC- Good Bumps","C2","HG- Swing Rays","LKP- Block You Like a Hurricane","GS- Dirty Sets on Tuesdays","GS- Sand Gators","C Teams"]
[null,null,null,null,null,null,null,null,null,"SARC - B Div teams week 2","B1","SARC- Raleigh Brawl","SARC-Notorious DIG","LKP- Bumpn' Uglies","SARC- Sand Diggers","B2","NR  Hit That Thang","SARC -I'd Hit That","CT Concrete Feet","GS- Rhymes w Stupid","B TEAMS"]
[null,null,null,null,null,null,null,null,null,"SARC - D Div teams week 2","D1","SARC- Mizfits","SARC- Sets on the Beach","SARC- Here for Beer","Team Sponsor","D2","SARC Unprotected Sets","SO- Team Kona","GS- El Toro's Revenge","CT- Dangerous When Set","D Teams"]

{"sheet":"32 team Bracketology","index":8,"n_rows":39,"n_cols":20,"rows_kept":39,"cut":false,"hidden":false,"merged":[]}
["32 TEAM BRACKETOLOGY-  The method to this schedule Madness"]
[]
["Night 1","All at SARC- Play Within Your Bracket"]
[null,"Teams play a round robin with 3 teams in their same Bracket"]
[null," 8 Brackets of 4- 3 games each  "]
["Bracket",null,null,null,null,"Bracket"]
["A1",1,2,3,4,"A2",5,6,7,8,null,"A Division "]
[]
["C1",9,10,11,12,"C2",13,14,15,16,null,"C Division"]
[]
["B1",17,18,19,20,"B2",21,22,23,24,null,"B Division"]
[]
["D1",25,26,27,28,"D2",29,30,31,32,null,"D Division"]
[]
[]
["Night 2","Play Adjoining Bracket-  Bracket VS Bracket-  Both are in the same Division"]
[null,"each team Plays the other 4 teams in the adjoining bracket in the same Row"]
[null,"8 team brackets at 4 locations with 2 courts each"]
[null,"4 games for each team"]
[null,"Bracket",null,null,null,null,"Bracket",null,null,null,null,null,"Best 8 Teams in Row 1"]
["SARC Red","A1",1,2,3,4,"A2",5,6,7,8,null,"Bracket A1 vs A2"]
[]
["LK","C1",9,10,11,12,"C2",13,14,15,16,null,"Bracket C1  vs C2"]
[]
["SARC Blue","B1",17,18,19,20,"B2",21,22,23,24,null,"Bracket B1 vs B2"]
[]
["GS","D1",25,26,27,28,"D2",29,30,31,32,null,"Bracket D1 vs D2"]
[]
[null,null,null,null,null,null,null,null,null,null,null,null,null,null,null,null,null,null,null," GS-50 Shades of Greystone"]
["Night 3","Vertical Brackets (Cross section of Divisions)"]
[null,"Each team Plays the 3 teams within their column plus one team from the adjacent column",null,null,null,null,null,null,null,null,"(2 games- A/B matchups)"]
[null,"8 team brackets at 4 locations with 2 courts each",null,null,null,null,null,null,null,null,"(2 games- C/D matchups)"]
[null,"4 games for each team"]
[null,"2 columns of 4 teams play at each location"]
[]
["SARC Red",1,2,"SARC Blue",3,4,"LK",5,6,"GS",7,8]
[null,9,10,null,11,12,null,13,14,null,15,16]
[null,17,18,null,19,20,null,21,22,null,23,24]
[null,25,26,null,27,28,null,29,30,null,31,32]

{"sheet":"# of games per night","index":9,"n_rows":50,"n_cols":18,"rows_kept":50,"cut":false,"hidden":false,"merged":[]}
["Night 1","ALL at Springdale",null,null,null,null,null,null,null,null,"Nights 2 and 3",null,"  - 3 HOST CLUBS (SARC, LKP, and GS)"]
["# games","time","Courts",null,null,null,null,null,null,null,null,null,"8 courts at 4 Sites w/ SARC counting as 2 Sites"]
[1,"06:00:00","court 1",null,"32 teams",null,null,null,null,null,null,null,null,"SARC Red and SARC Bluelue to be one perm court and one temp sand court"]
[2,null,"court 2",null,"3 games each",null,null,null,null,null,1,6,"court 1"]
[3,null,"court 3",null,"(32*3)/2",null,null,null,null,null,2,null,"court 2",null,"SARC Red","SARC Blue","LPK","GS"]
[4,null,"court 4",null,{"$f":"(32*3)/2","v":48},null,null,"# of games",null,null,3,"06:30:00","court 1",null,"2 courts","2 courts","2 courts","2 courts"]
[5,null,"court 5",null,null,null,null,null,null,null,4,null,"court 2",null,"8 teams","8 teams","8 teams","8 teams"]
[6,null,"court 6",null,null,null,null,null,null,null,5,7,"court 1"]
[7,"06:30:00","court 1",null,"4 total Sand courts at SARC w/ 2 temp Sand",null,null,null,null,null,6,null,"court 2",null,"Each Site- 8 teams"]
[8,null,"court 2",null,"Courts 3 and 4 are temporary sand courts on the soccer field",null,null,null,null,null,7,"07:30:00","court 1",null,"4 games each",null,"# of Games"]
[9,null,"court 3",null,"12 games on grass (courts 5 and 6)- no lights",null,null,null,null,null,8,null,"court 2",null,"(8*4)/2",null,"games per Site"]
[10,null,"court 4",null,"24 teams to play on grass",null,null,null,null,null,9,8,"court 1",null,{"$f":"(8*4)/2","v":16}]
[11,null,"court 5",null,"Best 8 teams only play sand",null,null,null,null,null,10,null,"court 2",null,"Occuring at 4 Sites"]
[12,null,"court 6",null,null,null,null,null,null,null,11,"08:30:00","court 1"]
[13,"07:00:00","court 1",null,"Games scheduled b/t 6 - 10:30 PM",null,null,null,null,null,12,null,"court 2",null,"Games scheduled b/t 6 PM - 10"]
[14,null,"court 2",null,null,null,null,null,null,null,13,9,"court 1"]
[15,null,"court 3",null,null,null,null,null,null,null,14,null,"court 2"]
[16,null,"court 4",null,null,null,null,null,null,null,15,"09:30:00","court 1"]
[17,null,"court 5",null,null,null,null,null,null,null,16,null,"court 2"]
[18,null,"court 6"]
[19,"07:30:00","court 1",null,null,null,null,null,null,"n "]
[20,null,"court 2"]
[21,null,"court 3"]
[22,null,"court 4"]
[23,null,"court 5"]
[24,null,"court 6"]
[25,"08:00:00","court 1"]
[26,null,"court 2"]
[27,null,"court 3"]
[28,null,"court 4"]
[29,null,"court 5"]
[30,null,"court 6"]
[31,"08:30:00","court 1"]
[32,null,"court 2"]
[33,null,"court 3"]
[34,null,"court 4"]
[35,null,"court 5",null,"if dark, can opt to play at 10:30"]
[36,null,"court 6",null,"if dark, can opt to play at 10:30"]
[37,"09:00:00","court 1"]
[38,null,"court 2"]
[39,null,"court 3"]
[40,null,"court 4"]
[41,"09:30:00","court 1"]
[42,null,"court 2"]
[43,null,"court 3"]
[44,null,"court 4"]
[45,"10:00:00","court 1"]
[46,null,"court 2"]
[47,null,"court 3"]
[48,null,"court 4"]

{"sheet":"Team # Match ups","index":10,"n_rows":51,"n_cols":33,"rows_kept":51,"cut":false,"hidden":false,"merged":[]}
["Night 1",null,null,null,null,null,null,null,null,null,null,null,"Night 2",null,null,null,null,null,null,null,null,null,null,null,"Night 3"]
[]
["# games","Bracket","Team  VS","Team",null,null,null,null,null,null,null,null,"# games","Bracket","Team  VS","Team",null,null,"# games","Bracket","Team  VS","Team",null,null,"# games","Bracket","Team  VS","Team",null,"# games","Bracket","Team  VS","Team"]
[1,"A",1,2,null,null,null,null,null,null,null,null,1,"SARC Red",1,5,null,null,1,"SARC Blue",17,21,null,null,1,"SARC Red",1,9,null,1,"LPK",5,13]
[2,"A",1,3,null,null,null,null,null,null,null,null,2,"SARC Red",1,6,null,null,2,"SARC Blue",17,22,null,null,2,"SARC Red",1,17,null,2,"LPK",5,21]
[3,"A",4,1,null,null,null,null,null,null,null,null,3,"SARC Red",7,1,null,null,3,"SARC Blue",23,17,null,null,3,"SARC Red",25,1,null,3,"LPK",29,5]
[4,"A",2,3,null,null,null,null,null,null,null,null,4,"SARC Red",8,1,null,null,4,"SARC Blue",24,17,null,null,4,"SARC Red",17,9,null,4,"LPK",21,13]
[5,"A",2,4,null,null,null,null,null,null,null,null,5,"SARC Red",2,5,null,null,5,"SARC Blue",18,21,null,null,5,"SARC Red",9,25,null,5,"LPK",13,29]
[6,"A",3,4,null,null,null,null,null,null,null,null,6,"SARC Red",2,6,null,null,6,"SARC Blue",18,22,null,null,6,"SARC Red",17,25,null,6,"LPK",21,29]
[7,"B",5,6,null,null,null,null,null,null,null,null,7,"SARC Red",7,2,null,null,7,"SARC Blue",23,18,null,null,7,"SARC Red",10,1,null,7,"LPK",14,5]
[8,"B",5,7,null,null,null,null,null,null,null,null,8,"SARC Red",8,2,null,null,8,"SARC Blue",24,18,null,null,8,"SARC Red",9,18,null,8,"LPK",13,22]
[9,"B",8,5,null,null,null,null,null,null,null,null,9,"SARC Red",5,3,null,null,9,"SARC Blue",21,19,null,null,9,"SARC Red",26,17,null,9,"LPK",30,21]
[10,"B",6,7,null,null,null,null,null,null,null,null,10,"SARC Red",6,3,null,null,10,"SARC Blue",22,19,null,null,10,"SARC Red",25,2,null,10,"LPK",29,6]
[11,"B",6,8,null,null,null,null,null,null,null,null,11,"SARC Red",3,7,null,null,11,"SARC Blue",19,23,null,null,11,"SARC Red",2,10,null,11,"LPK",6,14]
[12,"B",7,8,null,null,null,null,null,null,null,null,12,"SARC Red",3,8,null,null,12,"SARC Blue",19,24,null,null,12,"SARC Red",2,18,null,12,"LPK",6,22]
[13,"C",9,10,null,null,null,null,null,null,null,null,13,"SARC Red",5,4,null,null,13,"SARC Blue",21,20,null,null,13,"SARC Red",26,2,null,13,"LPK",30,6]
[14,"C",9,11,null,null,null,null,null,null,null,null,14,"SARC Red",6,4,null,null,14,"SARC Blue",22,20,null,null,14,"SARC Red",18,10,null,14,"LPK",22,14]
[15,"C",12,9,null,null,null,null,null,null,null,null,15,"SARC Red",4,7,null,null,15,"SARC Blue",20,23,null,null,15,"SARC Red",10,26,null,15,"LPK",14,30]
[16,"C",10,11,null,null,null,null,null,null,null,null,16,"SARC Red",4,8,null,null,16,"SARC Blue",20,24,null,null,16,"SARC Red",18,26,null,16,"LPK",22,30]
[17,"C",10,12]
[18,"C",11,12]
[19,"D",13,14,null,null,null,null,null,null,null,null,1,"LPK",9,13,null,null,1,"GS",25,29,null,null,1,"SARC Blue",3,11,null,1,"GS",7,15]
[20,"D",13,15,null,null,null,null,null,null,null,null,2,"LPK",9,14,null,null,2,"GS",25,30,null,null,2,"SARC Blue",3,19,null,2,"GS",7,23]
[21,"D",16,13,null,null,null,null,null,null,null,null,3,"LPK",15,9,null,null,3,"GS",31,25,null,null,3,"SARC Blue",27,3,null,3,"GS",31,7]
[22,"D",14,15,null,null,null,null,null,null,null,null,4,"LPK",16,9,null,null,4,"GS",32,25,null,null,4,"SARC Blue",19,11,null,4,"GS",23,15]
[23,"D",14,16,null,null,null,null,null,null,null,null,5,"LPK",10,13,null,null,5,"GS",26,29,null,null,5,"SARC Blue",11,27,null,5,"GS",15,31]
[24,"D",15,16,null,null,null,null,null,null,null,null,6,"LPK",10,14,null,null,6,"GS",26,30,null,null,6,"SARC Blue",19,27,null,6,"GS",23,31]
[25,"E",17,18,null,null,null,null,null,null,null,null,7,"LPK",15,10,null,null,7,"GS",31,26,null,null,7,"SARC Blue",12,3,null,7,"GS",16,7]
[26,"E",17,19,null,null,null,null,null,null,null,null,8,"LPK",16,10,null,null,8,"GS",32,26,null,null,8,"SARC Blue",11,20,null,8,"GS",15,24]
[27,"E",20,17,null,null,null,null,null,null,null,null,9,"LPK",13,11,null,null,9,"GS",29,27,null,null,9,"SARC Blue",28,19,null,9,"GS",32,23]
[28,"E",18,19,null,null,null,null,null,null,null,null,10,"LPK",14,11,null,null,10,"GS",30,27,null,null,10,"SARC Blue",27,4,null,10,"GS",31,8]
[29,"E",18,20,null,null,null,null,null,null,null,null,11,"LPK",11,15,null,null,11,"GS",27,31,null,null,11,"SARC Blue",4,12,null,11,"GS",8,16]
[30,"E",19,20,null,null,null,null,null,null,null,null,12,"LPK",11,16,null,null,12,"GS",27,32,null,null,12,"SARC Blue",4,20,null,12,"GS",8,24]
[31,"F",21,22,null,null,null,null,null,null,null,null,13,"LPK",13,12,null,null,13,"GS",29,28,null,null,13,"SARC Blue",28,4,null,13,"GS",32,8]
[32,"F",21,23,null,null,null,null,null,null,null,null,14,"LPK",14,12,null,null,14,"GS",30,28,null,null,14,"SARC Blue",20,12,null,14,"GS",24,16]
[33,"F",24,21,null,null,null,null,null,null,null,null,15,"LPK",12,15,null,null,15,"GS",28,31,null,null,15,"SARC Blue",12,28,null,15,"GS",16,32]
[34,"F",22,23,null,null,null,null,null,null,null,null,16,"LPK",12,16,null,null,16,"GS",28,32,null,null,16,"SARC Blue",20,28,null,16,"GS",24,32]
[35,"F",22,24]
[36,"F",23,24]
[37,"G",25,26]
[38,"G",25,27]
[39,"G",28,25]
[40,"G",26,27]
[41,"G",26,28]
[42,"G",27,28]
[43,"H",29,30]
[44,"H",29,31]
[45,"H",32,29]
[46,"H",30,31]
[47,"H",30,32]
[48,"H",31,32]